Cogmind - Beta 15 @@@ ROGUE MODE // 2025.05.07 @ 01:33:06 Player: szymekc Result: Establishing 0b11! Performance ------------- Evolutions (9) 4500 Regions Visited (33) 6600 Robots Destroyed (308) 1540 Value Destroyed (16746) 16746 Prototype IDs (378) 7560 Alien Tech Used (9) 1800 Bonus (46655) 46655 TOTAL SCORE: 85401 Bonus ------- High Alert Combat Kills 170 Follower Combat Kills 410 Forged Quantum Companion 2000 Registered with UFD 300 Met Optimus in HQ 500 Met Data Miner 300 Met Zhirov 300 MAIN.C Attacked Warlord 500 Warlord Defense Kills 140 Recovered Sigix Corpse 2000 Destroyed MAIN.C Guards 500 Met MAIN.C 5000 Destroyed MAIN.C Shell 5000 Destroyed MAIN.C 10000 Met Architect 300 Destroyed A6 400 Destroyed A5 500 Destroyed A3 800 Destroyed Architect 15000 Win 3000 Friendly Fire -465 Cogmind --------- Core Integrity 232/1600 Matter 253/300 Energy 474/480 System Corruption 0% Temperature Cool (11) Movement Hovering (67) Ox1 Location 0b11 Command Parts ------- > --- POWER (3) -------- Zero-point Reactor Concept Zero-point Core Concept Zero-point Core > --- PROPULSION (8) --- Experimental Gyrokinetic Inverter Experimental Antigrav System Experimental Antigrav System Gravjet Array Concept Gyrokinetic System Concept Gyrokinetic System Concept Gyrokinetic System > --- UTILITY (11) ----- Concept Antigrav Storage Unit ST Field Compressor Spectral Analyzer Concept Weapon Articulator Experimental Core Analyzer Femtoactuators SHELL Armor Graphene Brace AEGIS Remote Shield > --- WEAPON (3) ------- A3's Sniper Rifle Concept Tiamat Rocket Array Superquantum Companion > --- INVENTORY (25) --- Zero-point Reactor Zero-point Reactor Vortex Chain Reactor Experimental Gyrokinetic Inverter Experimental Gyrokinetic Inverter Gravjet Array 2N-1CE's Frost Array Experimental Energy Well (600) Experimental Energy Well (600) Experimental Energy Well (600) Quantum Shading Machine Deep Structural Scanner Advanced Phase Shifter Experimental Powered Armor AEGIS Remote Shield High-powered Transdimensional Reconstructor Concept Rapid Grenade Launcher Sigix Corpse Peak State ------------ > --- POWER ------------ Zero-point Reactor Concept Zero-point Core Concept Zero-point Core > --- PROPULSION ------- Experimental Antigrav System Experimental Antigrav System Experimental Antigrav System Gravjet Array Concept Gyrokinetic System Concept Gyrokinetic System Concept Gyrokinetic System > --- UTILITY ---------- Concept Antigrav Storage Unit Spectral Analyzer Concept Melee Reflex Suite Concept Weapon Articulator Experimental Core Analyzer Femtoactuators SHELL Armor AEGIS Remote Shield Experimental System Purifier > --- WEAPON ----------- Superquantum Companion Sigix Broadsword > --- INVENTORY -------- Zero-point Reactor Zero-point Reactor Zero-point Reactor Vortex Chain Reactor Experimental Antigrav System Gravjet Array Gravjet Array 2N-1CE's Frost Array Experimental Energy Well Quantum Shading Machine Deep Structural Scanner Advanced Phase Shifter Experimental Powered Armor Graphene Brace Thermal Barrier AEGIS Remote Shield AEGIS Remote Shield Concept Antimissile System Advanced Dynamic Insulation System High-powered Transdimensional Reconstructor Concept Rapid Grenade Launcher Concept Tiamat Rocket Array [Rating: 302] Favorites ----------- Power Concept Zero-point Core Engine Improved Ion Engine Power Core Concept Zero-point Core Reactor Zero-point Reactor Propulsion Light Treads Treads Light Treads Leg Aluminum Leg Hover Unit Concept Gyrokinetic System Flight Unit Cooled Cesium-ion Thruster Utility Advanced Melee Analysis Suite Device Cooling System Storage Large Storage Unit Processor Advanced Melee Analysis Suite Hackware Improved Hacking Suite Protection SHELL Armor Weapon Companion Sword Energy Gun Spread Laser Energy Cannon EM Pulse Cannon Ballistic Gun Light Assault Rifle Ballistic Cannon Light Cannon Launcher Concept Rapid Grenade Launcher Special Weapon Mining Laser Slashing Weapon Companion Sword Special Melee Weapon Advanced Datajack Build | -11 -10 -10 -9 -9 -9 -9 -6 -6 -6 -6 -6 -6 -5 -5 -5 -5 -5 -5 -5 -4 -4 -4 -4 -4 -3 -3 -3 -3 -2 -2 -1 -1 -1 ------- Run | Yrd Mat Min Mat Sto Rec Scr Fac Was Fac Low Low Dat Pro Fac Was Fac Upp Upp War Pro Fac Upp Upp Zhi Pro Res Qua Frg Res Tes Acc Com Ac0 Slots Evolved 18 | . . . 2 . . . 6 . . . . . . 2 . . . . . . 2 . . . . 2 . . 2 . 2 . . Power 2 | . . . . . . . . . . . . . . 1 . . . . . . . . . . . . . . . . 1 . . Propulsion 6 | . . . 2 . . . 2 . . . . . . . . . . . . . 1 . . . . 1 . . . . . . . Utility 9 | . . . . . . . 4 . . . . . . 1 . . . . . . 1 . . . . 1 . . 2 . . . . Weapon 1 | . . . . . . . . . . . . . . . . . . . . . . . . . . . . . . . 1 . . Parts Attached 252 | 7 11 2 21 13 6 11 27 3 15 1 1 . 1 7 . 12 . . 9 . 13 1 . 2 . 5 7 26 4 17 3 17 10 Power 39 | 1 2 . 3 1 2 1 3 . 3 1 . . . 2 . 3 . . 3 . 2 . . 1 . 1 2 2 . 1 2 3 . Engine 13 | 1 1 . 2 1 1 . . . 3 1 . . . . . 2 . . . . 1 . . . . . . . . . . . . Core 13 | . 1 . 1 . 1 1 1 . . . . . . 2 . . . . 2 . 1 . . . . . . 2 . 1 . . . Reactor 13 | . . . . . . . 2 . . . . . . . . 1 . . 1 . . . . 1 . 1 2 . . . 2 3 . Propulsion 68 | 2 3 . 10 6 1 6 10 . 5 . 1 . . 1 . 2 . . 1 . 2 . . . . 1 . 8 . 7 . . 2 Treads 21 | 2 2 . 9 6 1 1 . . . . . . . . . . . . . . . . . . . . . . . . . . . Leg 1 | . 1 . . . . . . . . . . . . . . . . . . . . . . . . . . . . . . . . Wheel . | . . . . . . . . . . . . . . . . . . . . . . . . . . . . . . . . . . Hover 11 | . . . . . . . 1 . . . . . . . . . . . . . . . . . . . . 2 . 6 . . 2 Flight 35 | . . . 1 . . 5 9 . 5 . 1 . . 1 . 2 . . 1 . 2 . . . . 1 . 6 . 1 . . . Utility 105 | 2 4 . . 4 . 2 12 3 6 . . . 1 4 . 6 . . 5 . 8 1 . 1 . 2 2 16 3 7 . 11 5 Device 58 | 2 2 . . 2 . 1 5 3 1 . . . . 2 . 1 . . 3 . 6 1 . . . 1 1 10 2 3 . 7 5 Storage 12 | . 2 . . 2 . 1 1 . . . . . 1 . . 2 . . . . . . . . . . . 1 . . . 2 . Processor 17 | . . . . . . . 5 . 1 . . . . 1 . 1 . . 1 . 1 . . . . . 1 1 1 2 . 2 . Hackware 11 | . . . . . . . . . 4 . . . . 1 . 1 . . 1 . 1 . . . . 1 . 2 . . . . . Protection 7 | . . . . . . . 1 . . . . . . . . 1 . . . . . . . 1 . . . 2 . 2 . . . Artifact . | . . . . . . . . . . . . . . . . . . . . . . . . . . . . . . . . . . Weapon 40 | 2 2 2 8 2 3 2 2 . 1 . . . . . . 1 . . . . 1 . . . . 1 3 . 1 2 1 3 3 Energy Gun 9 | . . 1 3 1 1 . . . . . . . . . . . . . . . . . . . . 1 . . . . . 2 . Energy Cannon 4 | . . 1 2 . . . 1 . . . . . . . . . . . . . . . . . . . . . . . . . . Ballistic Gun 6 | 2 2 . 1 . . . . . . . . . . . . . . . . . . . . . . . . . . . . . 1 Ballistic Cannon 4 | . . . 1 . 2 . . . . . . . . . . . . . . . . . . . . . . . . 1 . . . Launcher 8 | . . . 1 . . . . . 1 . . . . . . 1 . . . . . . . . . . 1 . 1 1 . 1 1 Special Weapon 3 | . . . . 1 . 1 . . . . . . . . . . . . . . 1 . . . . . . . . . . . . Impact Weapon . | . . . . . . . . . . . . . . . . . . . . . . . . . . . . . . . . . . Slashing Weapon 4 | . . . . . . 1 . . . . . . . . . . . . . . . . . . . . 1 . . . 1 . 1 Piercing Weapon . | . . . . . . . . . . . . . . . . . . . . . . . . . . . . . . . . . . Special Melee Weapon 2 | . . . . . . . 1 . . . . . . . . . . . . . . . . . . . 1 . . . . . . Unidentified Prototypes 61 | . . . 3 1 . 2 6 1 5 . . . . . . 3 . . 7 . 2 . . 2 . 2 6 9 . 9 . . 3 Corrupted Parts 7 | . . . . . . . . . . . . . . . . . . . . . . . . . . . . . . . . 7 . System Corruption 39 | . . . . . . . . . . . . . . . . . . . . . . . . . . . . . . . . 39 . Parts Lost 31 | . 5 . . . . 2 1 . 2 2 . . . . . 3 1 . 1 . 2 . . . . 2 1 6 . . . . 3 Power 4 | . 1 . . . . . 1 . . . . . . . . 1 . . . . 1 . . . . . . . . . . . . Propulsion 10 | . 2 . . . . 2 . . 1 1 . . . . . 1 . . . . . . . . . 1 . 2 . . . . . Utility 11 | . 2 . . . . . . . 1 1 . . . . . . 1 . 1 . . . . . . . 1 3 . . . . 1 Weapon 6 | . . . . . . . . . . . . . . . . 1 . . . . 1 . . . . 1 . 1 . . . . 2 Highest Loss Streak 4 | . 4 . . . . 2 1 . 1 1 . . . . . 2 1 . 1 . 1 . . . . 1 1 2 . . . . 1 To Critical Strikes 1 | . . . . . . . . . . . . . . . . . . . . . 1 . . . . . . . . . . . . Average Backups 14 | . 6 14 14 20 24 20 6 10 8 6 6 6 6 6 6 8 11 12 11 8 7 8 8 7 8 7 8 14 19 19 16 20 20 Power . | . . 1 . 1 1 1 . . . . . . . . . . . . . . . . . . . . . . 1 . . 2 3 Propulsion 3 | . 2 5 4 7 10 7 . 1 . . . . . . . . . . . 1 . . . . . . . 6 10 7 3 3 2 Utility 6 | . 1 2 5 5 6 5 3 4 5 3 4 4 4 4 3 5 8 8 7 5 6 7 7 6 6 5 3 3 5 8 10 11 11 Weapon 3 | . 1 5 4 6 7 5 1 2 1 1 1 1 1 1 1 . 1 1 1 1 1 1 1 1 1 1 . 1 2 2 2 2 2 Tool/Special . | . . . . . . . . . . . . . . . . . . . . . . . . . . . . . . . . . . Unused Backups 69 | . . 3 7 1 . 14 7 . 2 . . . . 2 2 . . . 4 . 1 . . . . 3 4 3 . 1 . 6 9 Power 7 | . . . . . . 1 . . . . . . . . . . . . . . . . . . . 1 . . . . . 4 1 Propulsion 18 | . . 3 2 . . 6 . . . . . . . 1 . . . . . . . . . . . . . 3 . . . . 3 Utility 27 | . . . 1 1 . 3 5 . 1 . . . . 1 1 . . . 2 . 1 . . . . 2 2 . . 1 . 2 4 Weapon 12 | . . . 4 . . 3 2 . 1 . . . . . 1 . . . . . . . . . . . 1 . . . . . . Tool/Special 5 | . . . . . . 1 . . . . . . . . . . . . 2 . . . . . . . 1 . . . . . 1 Average Slot Usage (%) 91 | . 96 100 99 100 99 87 92 93 98 97 90 100 100 94 94 86 81 76 80 88 90 89 89 88 89 84 89 88 90 91 86 84 82 Engine 3 | . 10 . 9 11 5 . . . 2 6 6 6 6 1 . 2 5 5 . . 1 5 5 5 5 . . . . . . . . Core 4 | . 3 14 1 . 5 11 4 . . . . . . 7 11 2 . . 1 5 5 5 5 3 . . . 2 8 8 8 8 8 Reactor 1 | . . . . . . . 2 6 3 . . . . . . 4 5 5 4 5 2 . . 2 5 7 9 6 . . 2 4 4 Treads 17 | . 26 28 43 44 44 33 . . . . . . . . . . . . . . . . . . . . . . . . . . . Hover 4 | . . . . . . . . . . . . . . . . . . . . . . . . . . . . . . 12 28 28 27 Flight 12 | . . . . . . 10 38 40 39 39 34 40 40 32 29 26 23 23 27 29 31 31 31 31 31 27 28 27 26 15 . . . Device 13 | . 14 14 11 11 11 11 12 19 11 4 . . . 3 11 9 11 11 12 11 12 15 15 13 15 10 13 19 25 22 16 18 19 Storage 7 | . 10 14 11 11 11 11 6 6 6 6 6 6 6 5 5 5 5 5 5 5 5 5 5 5 5 4 4 4 4 4 4 4 4 Processor 5 | . . . . . . . 18 13 13 13 13 13 13 11 11 11 11 11 11 11 10 10 10 10 10 9 7 7 8 8 8 9 8 Hackware 3 | . . . . . . . . . 7 13 13 13 13 12 5 10 10 5 7 11 12 10 10 10 10 13 10 5 8 8 8 . . Protection 1 | . . . . . . . 1 . . 1 6 6 6 5 5 1 . . . . . . . 1 . 2 4 2 . 1 4 4 4 Energy Gun 3 | . . 6 7 20 9 . . . . . . . . . . . . . . . . . . . . . . . . . . . . Energy Cannon 1 | . . 4 13 . . . . . . . . . . . . . . . . . . . . . . . . . . . . . . Ballistic Gun 2 | . 28 17 . . . . . . . . . . . . . . . . . . . . . . . . . . . . . . . Ballistic Cannon 1 | . . . . . 11 . . . . . . . . . . . . . . . . . . . . . . . . . . . . Special Weapon 1 | . . . . 1 . 7 . . 3 4 2 6 6 3 5 1 . . . . 1 . . . . . . . . . . . . Slashing Weapon 3 | . . . . . . 3 6 6 6 6 6 6 6 5 5 5 5 5 5 5 5 5 5 5 5 4 4 4 4 4 7 7 6 Peak Build Rating 302 | 9 12 14 23 20 20 32 76 81 84 84 78 78 79 96 97 106 92 86 116 105 130 123 130 135 134 153 169 240 258 275 296 302 297 Average Rating 99 | 5 8 12 19 17 18 20 63 77 80 81 72 78 78 88 96 93 91 86 100 105 123 121 129 131 133 140 165 199 257 257 291 293 282 On Entrance 106 | . 9 12 14 20 18 18 27 75 78 84 69 78 78 78 96 97 92 86 86 105 105 120 123 130 134 133 152 168 236 253 269 296 296 Naked Turns . | . . . . . . . . . . . . . . . . . . . . . . . . . . . . . . . . . . Heaviest Build 145 | 9 30 32 40 95 95 92 47 47 47 27 30 30 30 35 34 61 50 50 61 43 48 44 43 43 41 51 60 68 68 100 118 136 145 Greatest Support 134 | 40 40 40 92 89 83 83 48 48 48 37 30 30 30 38 38 61 55 55 63 43 51 51 51 51 51 61 67 68 68 132 132 134 132 Greatest Overweight (x) 4 | . 2 . . 1 1 1 1 . . . . . . 1 . 1 . . 4 . 1 . . . . . . . . 1 . 1 1 Average Overweight (x) . | . . . . . 1 . . . . . . . . . . . . . . . . . . . . . . . . . . . . Largest Inventory Capacity 25 | 5 15 15 15 25 25 25 15 15 15 10 10 10 10 10 10 15 15 15 15 10 10 10 10 10 10 10 10 25 25 25 25 25 25 Average Capacity 17 | 5 11 15 15 21 25 21 10 15 12 10 10 10 10 10 10 12 15 15 13 10 10 10 10 10 10 10 10 18 25 25 25 25 25 Most Carried 25 | 2 13 15 15 25 25 25 11 14 15 10 10 9 10 10 10 14 14 14 15 10 10 10 10 10 10 10 10 25 25 25 22 25 25 Average Carried 16 | . 6 14 14 20 24 21 9 13 11 9 9 9 9 9 9 11 13 14 13 10 9 10 10 9 10 9 9 17 23 23 20 23 23 Final Capacity 25 | 5 15 15 15 25 25 10 15 15 10 10 10 10 10 10 10 15 15 15 10 10 10 10 10 10 10 10 10 25 25 25 25 25 25 Final Carried 25 | 2 13 15 15 25 25 10 11 14 9 10 9 9 9 9 10 13 14 14 10 10 10 10 10 10 10 9 10 25 25 21 21 22 20 Class Distribution -------------------- 21% | Hacker-Sprinter 20% | Mutant 18% | Sprinter 12% | Scavenger-Mutant 11% | Commander-Mutant 5% | Wizard-Sprinter 4% | Scout Dominant Class ---------------- Mutant | -10/Materials Mutant | -10/Mines Mutant | -9/Materials Scavenger-Mutant | -9/Storage Commander-Mutant | -9/Recycling Commander-Mutant | -9/Scraptown Scout | -6/Factory Sprinter | -6/Waste Sprinter | -6/Factory Hacker-Sprinter | -6/Lower Caves Hacker-Sprinter | -6/Lower Caves Hacker-Sprinter | -6/Data Miner Hacker-Sprinter | -5/Proximity Caves Hacker-Sprinter | -5/Factory Sprinter | -5/Waste Hacker-Sprinter | -5/Factory Hacker-Sprinter | -5/Upper Caves Sprinter | -5/Upper Caves Scout | -5/Warlord Hacker-Sprinter | -4/Proximity Caves Hacker-Sprinter | -4/Factory Hacker-Sprinter | -4/Upper Caves Hacker-Sprinter | -4/Upper Caves Hacker-Sprinter | -4/Zhirov Hacker-Sprinter | -3/Proximity Caves Hacker-Sprinter | -3/Research Hacker-Sprinter | -3/Quarantine Hacker-Sprinter | -3/Protoforge Wizard-Sprinter | -2/Research Wizard-Sprinter | -2/Testing Wizard-Sprinter | -1/Access Sprinter | -1/Command Sprinter | -1/Access_0 Resources | -11 -10 -10 -9 -9 -9 -9 -6 -6 -6 -6 -6 -6 -5 -5 -5 -5 -5 -5 -5 -4 -4 -4 -4 -4 -3 -3 -3 -3 -2 -2 -1 -1 -1 ----------- Run | Yrd Mat Min Mat Sto Rec Scr Fac Was Fac Low Low Dat Pro Fac Was Fac Upp Upp War Pro Fac Upp Upp Zhi Pro Res Qua Frg Res Tes Acc Com Ac0 Matter Collected 5478 | 297 291 82 378 169 118 127 410 50 238 297 20 . 20 80 . 200 25 . 160 . 219 10 20 . 90 70 130 544 50 270 30 540 543 Remotely . | . . . . . . . . . . . . . . . . . . . . . . . . . . . . . . . . . . Salvage Created 19098 | 156 660 287 1718 557 241 . 710 231 474 211 . . 78 86 . 1039 67 13 29 . 481 56 . . 10 372 439 1278 401 360 1374 3453 4317 Parts 918 | 13 57 13 100 29 17 . 34 8 22 10 . . . 6 . 46 . . 1 . 11 2 . . 2 23 39 70 18 14 41 143 199 Haulers Intercepted 28 | . 2 . 3 6 . . 4 . 2 . . . . . . 3 . . . . 4 . . . . 1 1 . 2 . . . . Recyclers Shooed 3 | . . . 1 . 2 . . . . . . . . . . . . . . . . . . . . . . . . . . . . Parts Field Recycled . | . . . . . . . . . . . . . . . . . . . . . . . . . . . . . . . . . . Retrieved Matter . | . . . . . . . . . . . . . . . . . . . . . . . . . . . . . . . . . . Parts Self-Destructed 15 | . . . . . . . . . . 13 . . . . . . . . . . . . . . 2 . . . . . . . . Prevented . | . . . . . . . . . . . . . . . . . . . . . . . . . . . . . . . . . . Kills | -11 -10 -10 -9 -9 -9 -9 -6 -6 -6 -6 -6 -6 -5 -5 -5 -5 -5 -5 -5 -4 -4 -4 -4 -4 -3 -3 -3 -3 -2 -2 -1 -1 -1 ------- Run | Yrd Mat Min Mat Sto Rec Scr Fac Was Fac Low Low Dat Pro Fac Was Fac Upp Upp War Pro Fac Upp Upp Zhi Pro Res Qua Frg Res Tes Acc Com Ac0 Combat Hostiles Destroyed 212 | . 20 6 40 8 5 . 2 . 6 6 . . . 1 . 5 . . 1 . 1 . . . 1 2 4 17 2 3 14 21 47 Melee 107 | . . . . . . . 2 . 3 6 . . . 1 . 3 . . . . 1 . . . 1 2 3 17 2 3 11 18 34 Guns 39 | . 20 6 3 8 2 . . . . . . . . . . . . . . . . . . . . . . . . . . . . Cannons 27 | . . . 23 . 3 . . . . . . . . . . . . . . . . . . . . . 1 . . . . . . AOE 23 | . . . 12 . . . . . 3 . . . . . . 2 . . 1 . . . . . . . . . . . . . 5 Classes Destroyed 22 | 2 3 1 4 3 1 . . . . . . . . . . . . . . . . . . . 1 . . 5 . . 1 1 . Worker 13 | . . . 3 . . . . . 1 . . . . . . 5 . . . . . . . . . . . 1 . . . 3 . Builder 4 | . . . 1 . . . . . . . . . . . . 2 . . . . . . . . . 1 . . . . . . . Tunneler 4 | 4 . . . . . . . . . . . . . . . . . . . . . . . . . . . . . . . . . Hauler 28 | . 2 . 3 6 . . 4 . 2 . . . . . . 3 . . . . 4 . . . . 1 1 . 2 . . . . Recycler 10 | 1 . . . . . . 1 . . . . . . . . 3 . . . . . . . . . . . . . . . 5 . Mechanic 2 | . . . . . . . . . . . . . . . . . . . . . . . . . . . . 1 . . . 1 . Operator 11 | . . . . 1 . . 3 . . . . . . 1 . 1 . . . . . . . . . 1 1 . 1 1 . 1 . Drone 3 | . . . . . . . . . . . . . . . . . . . . . . . . . 1 . . 2 . . . . . Watcher 19 | . . . 2 . . . 1 . 2 . . . . 1 . . . . . . . . . . . 2 1 2 . . 7 1 . Swarmer 28 | . 9 . 10 . . . . . 3 4 . . . . . . . . . . . . . . . . . . . . 2 . . Grunt 55 | . 11 4 22 3 1 . 1 . 2 1 . . . . . 2 . . . . . . . . . . . . . 3 5 . . Brawler 3 | . . . . 1 . . . . . . . . . . . . . . . . . . . . . . . . . . 2 . . Duelist 2 | . . . 1 1 . . . . . . . . . . . . . . . . . . . . . . . . . . . . . Protector 2 | . . . . 1 . . . . . . . . . . . 1 . . . . . . . . . . . . . . . . . Researcher 4 | . . . . . . . . . . . . . . . . . . . . . . . . . . . . 3 . 1 . . . Sentry 25 | . . 2 7 3 3 . . . . . . . . . . 1 . . . . 1 . . . . 1 . 2 2 . 2 1 . Hunter 3 | . . . . . . . . . . . . . . . . . . . . . . . . . . . . . . . 1 2 . Programmer 26 | . . . . . 1 . 1 . 1 1 . . . 1 . 1 . . 1 . . . . . . 1 4 1 . . 2 11 . Behemoth 1 | . . . . . . . . . . . . . . . . . . . . . . . . . . . . . . . . 1 . M Guard 2 | . . . . . . . . . . . . . . . . . . . . . . . . . . . . . . . . 2 . Enhanced Grunt 29 | . . . . . . . . . . . . . . . . . . . . . . . . . . . . . . . . . 29 Enhanced Sentry 4 | . . . . . . . . . . . . . . . . . . . . . . . . . . . . . . . . . 4 Enhanced Hunter 8 | . . . . . . . . . . . . . . . . . . . . . . . . . . . . . . . . . 8 Hotshot 2 | . . . . . . . . . . . . . . . . . . . . . . . . . . . . 2 . . . . . Decapitator 9 | . . . . . . . . . . . . . . . . . . . . . . . . . . . . 9 . . . . . Combat Programmer 2 | . . . . . . . . . . . . . . . . . . . . . . . . . . . . . . . . 2 . V-Series 1 | . . . . . . . . . . . . . . . . . . . . . . . . . . . . 1 . . . . . Decomposer 3 | . . . . . . . . . . 1 . . . . . . . . . . . 2 . . . . . . . . . . . Packrat 1 | . . . . . . . . . . . . . . . . . 1 . . . . . . . . . . . . . . . . Tinkerer 1 | . . . . . . . . . . . . . . . . . . . . . . . . . . . . 1 . . . . . Best Kill Streak 11 | 3 6 2 7 3 3 . 2 . 4 4 . . . 2 . 11 . . 1 . 1 . . . 1 3 3 5 2 3 8 8 7 Combat Bots Only 7 | . 6 2 6 3 3 . 1 . 3 4 . . . 1 . 2 . . 1 . 1 . . . 1 1 3 5 1 3 7 4 7 Max Kills in Single Turn 11 | 1 1 1 4 2 1 . 1 . 4 1 . . . 1 . 11 1 . 1 . 1 1 . . 1 1 1 2 1 1 1 1 5 Gunslinging . | . . . . . . . . . . . . . . . . . . . . . . . . . . . . . . . . . . Exploded 5 | . . . 3 . . . . . 3 . . . . . . 2 . . 1 . . . . . . . . . . . . . 5 Melee 2 | . . . . . . . 1 . 1 1 . . . 1 . 1 . . . . 1 . . . 1 1 1 2 1 1 1 1 2 Uniques/NPCs Destroyed 8 | . . . . . . . . . . . . . . . . . . . . . . . . . . . . . . . . 2 6 MAIN.C Shell (-1/Command) MAIN.C (-1/Command) A8 (-1/Access_0) A6 (-1/Access_0) A5 (-1/Access_0) A4 (-1/Access_0) A2 (-1/Access_0) A3 (-1/Access_0) Combat | -11 -10 -10 -9 -9 -9 -9 -6 -6 -6 -6 -6 -6 -5 -5 -5 -5 -5 -5 -5 -4 -4 -4 -4 -4 -3 -3 -3 -3 -2 -2 -1 -1 -1 -------- Run | Yrd Mat Min Mat Sto Rec Scr Fac Was Fac Low Low Dat Pro Fac Was Fac Upp Upp War Pro Fac Upp Upp Zhi Pro Res Qua Frg Res Tes Acc Com Ac0 Hostile Shots Fired 1800 | . 136 17 140 29 49 53 26 . 83 38 3 . . 11 . 40 13 . 50 6 33 . . . 11 17 13 109 2 3 47 239 632 Missed 828 | . 40 5 39 13 14 21 13 . 52 22 1 . . 5 . 25 8 . 35 3 18 . . . 6 14 10 57 1 2 19 76 329 Intercepted 8 | . . . . . . . . . . . . . . . . . . . . . . . . . . . . . . . . 8 . Deflected 7 | . . . . . . . . . . . . . . . . . . . . . . . . . . . . 2 . . 1 2 2 Hits 972 | . 96 12 101 16 35 32 13 . 31 16 2 . . 6 . 15 5 . 15 3 15 . . . 5 3 3 52 1 1 28 163 303 Melee 27 | . . . 1 2 . 4 . . . . . . . . . . . . . . . . . . . . . 11 . . . . 9 Projectile 945 | . 96 12 100 14 35 28 13 . 31 16 2 . . 6 . 15 5 . 15 3 15 . . . 5 3 3 41 1 1 28 163 294 AOE 4 | . . . . . . . . . . . . . . . . . . . . . . . . . . . . 1 . . . 3 . Critical Strikes 72 | . . 1 3 1 3 1 . . . . . . . . . 1 . . . 1 1 . . . . . . 9 . . . 12 39 Actively Blocked 56 | . . . . . . . . . . . . . . . . . . . . . . . . . . . . 9 . . . 9 38 Part Disruptions 11 | . . . . . . . . . . . . . . . . . . . 1 . . . . . . . . . . . . 7 3 Actively Blocked 7 | . . . . . . . . . . . . . . . . . . . . . . . . . . . . . . . . 6 1 Damage Taken 16506 | . 916 177 1298 401 496 422 392 . 437 247 37 . . 145 . 754 86 . 293 55 361 . . . 165 86 70 1443 65 30 389 3041 4700 Core 2742 | . 133 62 165 44 33 157 81 . 134 18 23 . . 28 . 102 . . 106 . 165 . . . . 22 . 215 . 17 76 329 832 Absorbed by Shields 7337 | . . . . . . . . . 26 . . . . . . . . . . . . . . . . . . 161 . 12 300 2531 4307 Ignored by Resistances 1842 | . . . . . . . . . . . . . . . . . . . . . . . . . . . . 34 . . 28 814 966 Regen/Repaired (Parts) 4752 | . . . . . . . 50 7 94 . . . . 8 . 118 . . 72 . 40 . . . . 79 . . 70 . 234 1908 2072 Core Remaining (%) 58 | 100 . 22 . . . . . . . . . . 69 . . . . . . 76 . . . . 85 . . 61 . 98 . . 14 Volleys Fired 294 | 18 88 11 93 44 20 . . . 1 . . . . . . 1 . . . . . . . . . . . . . . . 17 1 Largest 2 | 2 2 2 2 2 2 . . . 1 . . . . . . 1 . . . . . . . . . . . . . . . 2 1 Hottest 150 | 40 40 125 126 130 130 . . . 43 . . . . . . 43 . . . . . . . . . . . . . . . 150 65 Shots Fired 544 | 36 176 22 153 85 41 . . . 1 . . . . . . 1 . . . . . . . . . . . . . . . 28 1 Gun 390 | 36 176 20 29 82 24 . . . . . . . . . . . . . . . . . . . . . . . . . . 23 . Cannon 138 | . . 2 119 . 17 . . . . . . . . . . . . . . . . . . . . . . . . . . . . Launcher 13 | . . . 5 . . . . . 1 . . . . . . 1 . . . . . . . . . . . . . . . 5 1 Special 3 | . . . . 3 . . . . . . . . . . . . . . . . . . . . . . . . . . . . . Kinetic 247 | 36 176 13 5 . 17 . . . . . . . . . . . . . . . . . . . . . . . . . . . . Thermal 184 | . . 9 78 85 12 . . . . . . . . . . . . . . . . . . . . . . . . . . . . Explosive 8 | . . . 5 . . . . . 1 . . . . . . 1 . . . . . . . . . . . . . . . . 1 Electromagnetic 105 | . . . 65 . 12 . . . . . . . . . . . . . . . . . . . . . . . . . . 28 . Robot Hit Streak 24 | 8 8 11 10 11 8 . . . . . . . . . . 1 . . . . . . . . . . . . . . . 24 . Robot Miss Streak 15 | 2 4 2 4 15 5 . . . . . . . . . . . . . . . . . . . . . . . . . . . . Penetration Max . | . . . . . . . . . . . . . . . . . . . . . . . . . . . . . . . . . . Secondary Targets 6 | . 4 . . 2 . . . . . . . . . . . . . . . . . . . . . . . . . . . . . Max Gunslinging Chain 1 | . 1 . . 1 . . . . . . . . . . . . . . . . . . . . . . . . . . . . . Autonomous 26 | . . . . . . . . . . . . . . . . . . . . . . . . . . 2 3 9 . . 3 3 6 Shots Hit Robots 1139 | 26 110 17 94 73 33 2 20 5 24 8 . . 3 6 . 16 1 1 1 . 22 3 . . 1 10 12 54 5 11 63 180 338 Core Hits 587 | 9 48 12 56 95 22 . 10 1 12 6 . . 1 4 . 26 . 1 . . 6 1 . . 1 7 4 24 3 3 18 50 167 Critical Kills 4 | 2 . . 2 . . . . . . . . . . . . . . . . . . . . . . . . . . . . . . Critical Parts Destroyed . | . . . . . . . . . . . . . . . . . . . . . . . . . . . . . . . . . . Critical Strikes 43 | 2 . . 4 . 1 . . . 2 . . . . . . . . . . . . . . . . . . 2 . . 2 12 18 Meltdown 2 | . . . 2 . . . . . . . . . . . . . . . . . . . . . . . . . . . . . . Destroy 2 | 2 . . . . . . . . . . . . . . . . . . . . . . . . . . . . . . . . . Blast 2 | . . . 1 . 1 . . . . . . . . . . . . . . . . . . . . . . . . . . . . Corrupt 1 | . . . 1 . . . . . . . . . . . . . . . . . . . . . . . . . . . . . . Melee Attacks 1065 | . . . . . . 12 45 5 41 12 . . 3 9 . 36 9 5 9 . 67 4 . . 6 26 25 80 7 21 77 208 358 Impact . | . . . . . . . . . . . . . . . . . . . . . . . . . . . . . . . . . . Slashing 1062 | . . . . . . 12 44 5 40 12 . . 3 9 . 36 9 5 9 . 67 4 . . 6 26 25 79 7 21 77 208 358 Piercing . | . . . . . . . . . . . . . . . . . . . . . . . . . . . . . . . . . . Sneak Attacks 81 | . . . . . . . 6 . 4 1 . . . 1 . 5 1 . . . 4 3 . . 1 6 1 14 3 1 2 13 15 Combat Hostiles 30 | . . . . . . . . . . 1 . . . . . 1 . . . . . . . . 1 2 . 5 1 . 1 3 15 Follow-up Attacks 23 | . . . . . . . . . . . . . . . . . . . . . . . . . . . . 2 . . . 5 16 Martial Strikes 31 | . . . . . . . . . . . . . . . . . . . . . . . . . . . . . 1 4 18 8 . Damage Inflicted 68441 | 211 1054 252 2788 1024 565 87 1217 418 1409 374 . . 198 325 . 2660 100 107 33 . 1288 311 . . 164 1346 1295 6690 566 1035 4974 13750 24200 Guns 3268 | 211 1008 219 250 1019 299 . . . . . . . . . . . . . . . . . . . . . . . . . . 262 . Cannons 4245 | . . 18 1729 . 202 . . . . . . . . . . . . . . . . . . . . 159 274 765 . . 281 264 553 Explosions 3635 | . . . 772 . 43 . . . 266 . . . . . . 1655 . . . . . . . . . . . . . . . . 899 Melee 57169 | . . . . . . 87 1217 418 1143 374 . . 198 325 . 1005 100 107 33 . 1288 311 . . 164 1187 1021 5925 566 1035 4693 13224 22748 Ramming 124 | . 46 15 37 5 21 . . . . . . . . . . . . . . . . . . . . . . . . . . . . Kinetic 1594 | 211 1008 123 50 . 202 . . . . . . . . . . . . . . . . . . . . . . . . . . . . Thermal 3834 | . . 114 978 1019 197 . . . . . . . . . . 1526 . . . . . . . . . . . . . . . . . Explosive 1824 | . . . 530 . . . . . 266 . . . . . . 129 . . . . . . . . . . . . . . . . 899 Electromagnetic 1600 | . . . 1193 . 145 . . . . . . . . . . . . . . . . . . . . . . . . . . 262 . Impact . | . . . . . . . . . . . . . . . . . . . . . . . . . . . . . . . . . . Slashing 57169 | . . . . . . 87 1217 418 1143 374 . . 198 325 . 1005 100 107 33 . 1288 311 . . 164 1187 1021 5925 566 1035 4693 13224 22748 Piercing . | . . . . . . . . . . . . . . . . . . . . . . . . . . . . . . . . . . Phasic 2296 | . . . . . . . . . . . . . . . . . . . . . . . . . . 159 274 765 . . 281 264 553 Highest Corruption 20 | . . . . . 1 . . . 2 2 2 2 2 . . . . . 2 2 . . . . 1 . 1 9 1 1 1 20 . Average Corruption 2 | . . . . . 1 . . . 1 2 2 2 2 . . . . . 1 2 . . . . 1 . 1 3 1 1 1 5 . Corruption Purged 55 | . . . . . . . . . . . . . . . . . . . . . . . . . . . . . . 1 . 54 . Corruption Blocked . | . . . . . . . . . . . . . . . . . . . . . . . . . . . . . . . . . . Effects 78 | . . . . . 5 . . . 6 7 2 . 2 . . . . . 4 2 . . . . . . 1 11 . . 1 37 . Message Errors 16 | . . . . . 1 . . . 2 2 1 . . . . . . . 1 . . . . . . . . 3 . . 1 5 . Matter Fused 26 | . . . . . 1 . . . 1 4 . . 1 . . . . . 3 . . . . . . . . 3 . . . 13 . Heat Flow Errors 9 | . . . . . . . . . 2 . . . 1 . . . . . . . . . . . . . 1 1 . . . 4 . Energy Discharges 11 | . . . . . 1 . . . 1 1 1 . . . . . . . . . . . . . . . . 2 . . . 5 . Parts Rejected 1 | . . . . . . . . . . . . . . . . . . . . . . . . . . . . . . . . 1 . Data Loss (minor) 8 | . . . . . . . . . . . . . . . . . . . . 2 . . . . . . . 1 . . . 5 . Data Loss (major) 4 | . . . . . 1 . . . . . . . . . . . . . . . . . . . . . . . . . . 3 . Misfires 1 | . . . . . 1 . . . . . . . . . . . . . . . . . . . . . . . . . . . . Alerts 2 | . . . . . . . . . . . . . . . . . . . . . . . . . . . . 1 . . . 1 . Overload Shots . | . . . . . . . . . . . . . . . . . . . . . . . . . . . . . . . . . . Overflow Damage 6386 | . . . 43 . 5 . 67 76 48 115 . . 19 9 . 224 85 . . . 57 178 . . . 195 395 1402 86 324 532 1920 606 Projectiles 260 | . . . . . 5 . . . . . . . . . . . . . . . . . . . . . 131 117 . . 7 . . Explosions 164 | . . . 43 . . . . . . . . . . . . 121 . . . . . . . . . . . . . . . . . Melee 5962 | . . . . . . . 67 76 48 115 . . 19 9 . 103 85 . . . 57 178 . . . 195 264 1285 86 324 525 1920 606 Knockbacks 3 | . . . . . 3 . . . . . . . . . . . . . . . . . . . . . . . . . . . . Impact . | . . . . . . . . . . . . . . . . . . . . . . . . . . . . . . . . . . Kinetic 3 | . . . . . 3 . . . . . . . . . . . . . . . . . . . . . . . . . . . . Secondary . | . . . . . . . . . . . . . . . . . . . . . . . . . . . . . . . . . . Self-Inflicted Damage 111 | . . . 91 . . . . . 20 . . . . . . . . . . . . . . . . . . . . . . . . Shots 5 | . . . 4 . . . . . 1 . . . . . . . . . . . . . . . . . . . . . . . . Rammed 25 | . 10 3 6 2 4 . . . . . . . . . . . . . . . . . . . . . . . . . . . . Targets Rammed 25 | . 10 3 6 2 4 . . . . . . . . . . . . . . . . . . . . . . . . . . . . Kicked . | . . . . . . . . . . . . . . . . . . . . . . . . . . . . . . . . . . Crushed . | . . . . . . . . . . . . . . . . . . . . . . . . . . . . . . . . . . Highest Temperature 424 | . 12 63 344 90 32 38 151 30 254 10 4 3 157 176 . . . . 10 3 309 132 . . 8 2 222 138 . 424 57 290 . Average Temperature 47 | . 6 24 57 20 19 14 61 16 33 2 2 2 30 38 . . . . 5 3 56 73 . . 7 2 114 81 . 168 18 66 . Received Heat Transfer 1894 | . 291 93 561 96 153 205 30 . 102 12 . . . 12 . 18 . . . 9 27 . . . 9 . . 96 . . 8 81 91 Effects 1 | . . . . . . . . . . . . . . . . . . . . . 1 . . . . . . . . . . . . Interference 1 | . . . . . . . . . . . . . . . . . . . . . 1 . . . . . . . . . . . . Siege Activations . | . . . . . . . . . . . . . . . . . . . . . . . . . . . . . . . . . . Martial Activations . | . . . . . . . . . . . . . . . . . . . . . . . . . . . . . . . . . . Shielding Activations . | . . . . . . . . . . . . . . . . . . . . . . . . . . . . . . . . . . Robots Disrupted 6 | . . . . . . . . . 1 . . . . . . . . . . . . . . . . . . . . . . . 5 Combat Hostiles 5 | . . . . . . . . . . . . . . . . . . . . . . . . . . . . . . . . . 5 Robots Corrupted 3 | . . . 1 . . . . . . . . . . . . . . . . . . . . . . . . . . . . 2 . Combat Hostiles 3 | . . . 1 . . . . . . . . . . . . . . . . . . . . . . . . . . . . 2 . Parts Fried 14 | . . . 10 . . . . . . . . . . . . . . . . . . . . . . . . . . . . 4 . Impact Corruptions . | . . . . . . . . . . . . . . . . . . . . . . . . . . . . . . . . . . Robots Melted 2 | . . . 2 . . . . . . . . . . . . . . . . . . . . . . . . . . . . . . Combat Hostiles 1 | . . . 1 . . . . . . . . . . . . . . . . . . . . . . . . . . . . . . Parts Melted 9 | . . . 7 . 1 . . . . . . . . . . 1 . . . . . . . . . . . . . . . . . Heat Transferred 4709 | . . 259 1916 1269 240 . . . . . . . . . . 1025 . . . . . . . . . . . . . . . . . Parts Sabotaged . | . . . . . . . . . . . . . . . . . . . . . . . . . . . . . . . . . . Parts Stolen . | . . . . . . . . . . . . . . . . . . . . . . . . . . . . . . . . . . Parts Stripped 187 | . . . . . . . . . . . . . . . . . . . . . . . . . . . . . 12 . 20 32 123 Power Chain Reactions 6 | . . . 3 . 1 . . . . . . . . . . . . . . . . . . . . . . . . . . 2 . Alert | -11 -10 -10 -9 -9 -9 -9 -6 -6 -6 -6 -6 -6 -5 -5 -5 -5 -5 -5 -5 -4 -4 -4 -4 -4 -3 -3 -3 -3 -2 -2 -1 -1 -1 ------- Run | Yrd Mat Min Mat Sto Rec Scr Fac Was Fac Low Low Dat Pro Fac Was Fac Upp Upp War Pro Fac Upp Upp Zhi Pro Res Qua Frg Res Tes Acc Com Ac0 Maximum Alert Level 2 | . 1 . 2 2 . . . . 2 . . . . 1 . 2 . . . . 1 . . . . 1 . 2 1 . 1 2 . Low Security (%) 62 | 100 54 100 36 8 100 . 100 100 88 . . . . 73 100 95 . . . . 99 . . . . 95 100 55 50 100 93 10 . Level 1 20 | . 45 . 19 80 . . . . 11 . . . . 26 . . . . . . . . . . . 4 . 30 49 . 6 22 . Level 2 16 | . . . 43 10 . . . . . . . . . . . 4 . . . . . . . . . . . 14 . . . 66 . Level 3 . | . . . . . . . . . . . . . . . . . . . . . . . . . . . . . . . . . . Level 4 . | . . . . . . . . . . . . . . . . . . . . . . . . . . . . . . . . . . Level 5 . | . . . . . . . . . . . . . . . . . . . . . . . . . . . . . . . . . . High Security . | . . . . . . . . . . . . . . . . . . . . . . . . . . . . . . . . . . Max Security . | . . . . . . . . . . . . . . . . . . . . . . . . . . . . . . . . . . Peak Influence 582 | 15 331 123 582 426 160 . 65 5 447 . . . . 242 81 580 . . . . 255 . . . . 226 191 429 254 133 234 291 . Initial 224 | . . 123 . 191 130 . . 5 . . . . . 25 81 49 . . . . . . . . . 150 126 12 224 30 3 16 . Average 135 | 1 138 35 290 331 29 . 16 . 77 . . . . 89 78 72 . . . . 51 . . . . 79 65 206 141 46 45 175 . Influence Increases 10627 | 25 685 155 1165 778 291 . 319 . 1092 350 15 . 65 347 . 962 75 . 125 45 673 45 . . 65 501 196 715 100 223 478 802 335 Destroy 0b10 Robot/C 3560 | . 400 120 800 400 120 . 40 . 120 120 . . . 20 . 80 . . 20 . 20 . . . . 40 80 360 40 80 280 420 . Destroy 0b10 Robot/NC 525 | 25 10 . 45 50 5 . 45 . 25 . . . 5 10 . 75 . . . . 20 . . . 5 25 15 40 15 5 35 70 . Destroy Leader 868 | . 94 20 210 136 . . 20 . 28 20 . . . 12 . 36 . . . . 18 . . . . 26 14 54 24 . 64 92 . Allied During Kill 138 | . . . . 129 9 . . . . . . . . . . . . . . . . . . . . . . . . . . . . Trap Triggered on 0b10 20 | . . . . . . . 10 . . . . . . . . . . . . . 10 . . . . . . . . . . . . Successful Hack 481 | . 16 . 28 18 19 . 24 . 106 . . . . 55 . 88 . . . . 45 . . . . 39 . 15 . 9 15 4 . Select Force Hacks 180 | . 60 . . . 120 . . . . . . . . . . . . . . . . . . . . . . . . . . . . Disable Machine 885 | . . . 30 30 15 . 30 . 15 . . . . . . 270 . . . . 15 . . . . . 60 150 . 105 . 30 135 Destroy Structure 790 | . . . 52 . 3 . 15 . 48 . . . . 40 . 158 . . . . 80 . . . . 26 12 6 6 9 39 111 185 Advance Influence 150 | . . . . . . . . . . . . . . . . . . . . . . . . . . 150 . . . . . . . Partial Spotted 495 | . . . . . . . 15 . 105 . . . . 45 . 75 . . . . 75 . . . . 30 15 15 15 15 30 45 15 Lose Combat Pursuer 2535 | . 105 15 . 15 . . 120 . 645 210 15 . 60 165 . 180 75 . 105 45 390 45 . . 60 165 . 75 . . 15 30 . Influence Decreases 10322 | 25 367 473 710 898 626 . 302 17 645 449 127 236 25 155 161 453 335 131 302 57 418 145 90 65 65 275 400 338 445 271 459 244 613 Entered New Map 2905 | . . 195 . 264 205 . . 12 . 167 67 236 . 15 151 22 215 61 189 12 . 95 30 65 . . 100 10 175 24 3 9 583 Time Decay 5451 | 25 317 278 560 534 421 . 273 5 314 262 60 . 25 140 10 267 110 70 113 45 300 50 60 . 65 110 144 268 120 106 164 235 . Lost Part 252 | . 50 . . . . . . . 16 20 . . . . . 22 10 . . . 14 . . . . 20 10 60 . . . . 30 Lost Ally 125 | . . . . 100 . . . . 15 . . . . . . 10 . . . . . . . . . . . . . . . . . Purge Threat 1589 | . . . 150 . . . 29 . 300 . . . . . . 132 . . . . 104 . . . . 145 146 . 150 141 292 . . Squads Dispatched 69 | . 6 . 8 3 . . 7 . 11 . . . . 6 . 9 . . . . 6 . . . . 3 1 1 1 1 3 3 . Investigation 24 | . 3 . 2 . . . 3 . 4 . . . . 3 . 3 . . . . 3 . . . . 1 . . 1 . 1 . . Extermination 21 | . . . . . . . 3 . 3 . . . . 1 . 3 . . . . 3 . . . . 1 1 1 . 1 2 2 . Reinforcement 20 | . 3 . 5 1 . . 1 . 4 . . . . 2 . 2 . . . . . . . . . 1 . . . . . 1 . Assault 3 | . . . 1 2 . . . . . . . . . . . . . . . . . . . . . . . . . . . . . Garrison 1 | . . . . . . . . . . . . . . . . 1 . . . . . . . . . . . . . . . . . Intercept . | . . . . . . . . . . . . . . . . . . . . . . . . . . . . . . . . . . Searches Triggered . | . . . . . . . . . . . . . . . . . . . . . . . . . . . . . . . . . . Data Miner Redirects 2 | . . . . . . . . . . . . . . . . . . . . . 1 . . . . 1 . . . . . . . Construction Impeded 2 | . . . 2 . . . . . . . . . . . . . . . . . . . . . . . . . . . . . . Haulers Reinforced 3 | . . . . . . . 1 . 1 . . . . . . . . . . . . . . . . 1 . . . . . . . Active Scanning Responses . | . . . . . . . . . . . . . . . . . . . . . . . . . . . . . . . . . . Cargo Convoy Interrupts 3 | . . . . . . . 1 . . . . . . . . 1 . . . . 1 . . . . . . . . . . . . Stealth | -11 -10 -10 -9 -9 -9 -9 -6 -6 -6 -6 -6 -6 -5 -5 -5 -5 -5 -5 -5 -4 -4 -4 -4 -4 -3 -3 -3 -3 -2 -2 -1 -1 -1 --------- Run | Yrd Mat Min Mat Sto Rec Scr Fac Was Fac Low Low Dat Pro Fac Was Fac Upp Upp War Pro Fac Upp Upp Zhi Pro Res Qua Frg Res Tes Acc Com Ac0 Distress Signals 37 | . 4 . 3 1 . . 2 . . . . . . . . 2 . . . . 5 . . . . 3 . . . . 1 16 . Communications Jammed 17 | . . . . . . . . . . . . . . . . . . . . . . . . . . . . . . . 17 . . Distress Signals 17 | . . . . . . . . . . . . . . . . . . . . . . . . . . . . . . . 17 . . Times Spotted 599 | . 38 6 58 27 6 36 18 . 52 18 5 . 4 16 6 25 5 . 44 4 34 2 . . 5 16 7 30 3 5 26 29 74 Peak Tracking Total 18 | . 9 3 6 7 3 16 5 . 18 4 6 . 4 5 6 16 4 . 11 3 17 4 . . 4 10 3 8 1 2 6 4 8 Tactical Retreats 67 | . 3 1 . 1 . 1 6 . 8 4 1 . 1 3 . 5 2 . 3 2 11 1 . . 1 4 . 5 . . 1 2 1 Traps | -11 -10 -10 -9 -9 -9 -9 -6 -6 -6 -6 -6 -6 -5 -5 -5 -5 -5 -5 -5 -4 -4 -4 -4 -4 -3 -3 -3 -3 -2 -2 -1 -1 -1 ------- Run | Yrd Mat Min Mat Sto Rec Scr Fac Was Fac Low Low Dat Pro Fac Was Fac Upp Upp War Pro Fac Upp Upp Zhi Pro Res Qua Frg Res Tes Acc Com Ac0 Traps Triggered 31 | . 1 . 4 1 . . 3 . 3 . . . . 1 . 4 . . . . 2 . . . . . . 8 1 2 1 . . Indirectly . | . . . . . . . . . . . . . . . . . . . . . . . . . . . . . . . . . . Trap Hack Attempts . | . . . . . . . . . . . . . . . . . . . . . . . . . . . . . . . . . . Triggered . | . . . . . . . . . . . . . . . . . . . . . . . . . . . . . . . . . . Disarmed . | . . . . . . . . . . . . . . . . . . . . . . . . . . . . . . . . . . Reprogrammed 12 | . . . . . . . . . . . . . . . . . . . . . 6 . . . . 6 . . . . . . . Reused 2 | . . . . . . . 1 . . . . . . . . . . . . . 1 . . . . . . . . . . . . Traps Extracted . | . . . . . . . . . . . . . . . . . . . . . . . . . . . . . . . . . . Installed 2 | . . . . . . . 1 . . . . . . . . 1 . . . . . . . . . . . . . . . . . Triggered 2 | . . . . . . . 1 . . . . . . . . . . . . . 1 . . . . . . . . . . . . Most Traps Carried 3 | . . . . . . 3 3 2 2 2 2 2 2 2 2 2 1 1 1 1 1 1 1 1 1 1 1 . . . . . . Machines | -11 -10 -10 -9 -9 -9 -9 -6 -6 -6 -6 -6 -6 -5 -5 -5 -5 -5 -5 -5 -4 -4 -4 -4 -4 -3 -3 -3 -3 -2 -2 -1 -1 -1 ---------- Run | Yrd Mat Min Mat Sto Rec Scr Fac Was Fac Low Low Dat Pro Fac Was Fac Upp Upp War Pro Fac Upp Upp Zhi Pro Res Qua Frg Res Tes Acc Com Ac0 Machines Disabled 64 | . . . 2 2 1 3 2 . 1 . . . . . . 18 1 1 . . 1 . . . . . 4 10 . 7 . 2 9 Max in Single Turn 16 | . . . 1 1 1 1 1 . 1 . . . . . . 16 1 1 . . 1 . . . . . 1 1 . 1 . 1 1 Garrison Access 7 | . . . . . . . . . . . . . . 1 . . . . . . 1 . . . . 1 1 1 1 . 1 . . Machines Repaired . | . . . . . . . . . . . . . . . . . . . . . . . . . . . . . . . . . . Machines Dismantled . | . . . . . . . . . . . . . . . . . . . . . . . . . . . . . . . . . . Machines Sabotaged . | . . . . . . . . . . . . . . . . . . . . . . . . . . . . . . . . . . Overloaded Fab Kills . | . . . . . . . . . . . . . . . . . . . . . . . . . . . . . . . . . . Hacking | -11 -10 -10 -9 -9 -9 -9 -6 -6 -6 -6 -6 -6 -5 -5 -5 -5 -5 -5 -5 -4 -4 -4 -4 -4 -3 -3 -3 -3 -2 -2 -1 -1 -1 --------- Run | Yrd Mat Min Mat Sto Rec Scr Fac Was Fac Low Low Dat Pro Fac Was Fac Upp Upp War Pro Fac Upp Upp Zhi Pro Res Qua Frg Res Tes Acc Com Ac0 Machines Accessed 182 | . 6 . 10 9 10 5 15 . 23 . 1 4 . 11 . 21 2 1 1 . 20 . . 4 . 8 6 4 5 5 8 1 2 Terminals 93 | . 4 . 8 8 5 . 7 . 9 . . . . 4 . 12 1 1 . . 9 . . . . 3 5 3 3 4 6 1 . Fabricators 14 | . . . . . . . 1 . 4 . . . . 2 . 2 . . . . 4 . . . . . . . . . 1 . . Repair Stations 11 | . . . . . . . 1 . 3 . . . . 1 . 2 . . . . 2 . . . . 1 . . 1 . . . . Recycling Units 29 | . 2 . 2 1 5 . 4 . 3 . . . . 3 . 4 . . . . 4 . . . . 1 . . . . . . . Scanalyzers 8 | . . . . . . . 1 . 3 . . . . . . 1 . . . . . . . . . 2 . . . 1 . . . Garrison Access 9 | . . . . . . . 1 . 1 . . . . 1 . . . . . . 1 . . . . 1 1 1 1 . 1 . . Total Hacks 510 | . 18 . 24 22 35 32 33 . 56 . 5 30 . 28 . 53 6 3 1 . 45 . . 17 . 28 12 7 8 14 15 1 17 Successful 341 | . 9 . 15 10 20 32 12 . 29 . 5 30 . 16 . 31 6 3 1 . 31 . . 17 . 14 5 4 8 13 12 1 17 Failed 169 | . 9 . 9 12 15 . 21 . 27 . . . . 12 . 22 . . . . 14 . . . . 14 7 3 . 1 3 . . Catastrophic 31 | . 3 . 3 3 2 . 6 . 6 . . . . 1 . 1 . . . . 3 . . . . 1 1 1 . . . . . Database Lockouts . | . . . . . . . . . . . . . . . . . . . . . . . . . . . . . . . . . . Manual 176 | . 16 . 15 14 21 . 13 . 17 . . . . 11 . 19 . . 1 . 17 . . . . 12 . 1 3 7 9 . . Terminals 249 | . 14 . 19 21 22 . 18 . 24 . . . . 8 . 30 5 3 . . 22 . . . . 17 10 6 6 11 12 1 . Fabricators 33 | . . . . . . . 1 . 10 . . . . 6 . 4 . . . . 10 . . . . . . . . . 2 . . Repair Stations 19 | . . . . . . . 2 . 6 . . . . 2 . 5 . . . . 2 . . . . 1 . . 1 . . . . Recycling Units 69 | . 4 . 5 1 13 . 7 . 6 . . . . 9 . 12 . . . . 9 . . . . 3 . . . . . . . Scanalyzers 20 | . . . . . . . 3 . 8 . . . . . . 2 . . . . . . . . . 4 . . . 3 . . . Garrison Access 17 | . . . . . . . 2 . 2 . . . . 3 . . . . . . 2 . . . . 3 2 1 1 . 1 . . Terminal Hacks 203 | . 1 . 5 3 4 32 3 . 8 . 5 30 . 2 . 13 6 3 1 . 14 . . 17 . 7 4 3 6 10 8 1 17 Record 75 | . . . . . . 30 . . . . 5 11 . . . . 5 3 . . . . . 5 . . . . . . . . 16 Part Schematic 17 | . . . . . . . . . . . . 9 . . . . . . . . 1 . . 4 . . . . . 2 1 . . Robot Schematic 7 | . . . . . . . . . . . . 7 . . . . . . . . . . . . . . . . . . . . . Robot Analysis 8 | . . . 1 . . . . . . . . . . . . . . . . . . . . 4 . . . . . 3 . . . Prototype ID Bank 11 | . . . . . . . . . . . . 3 . . . 3 . . . . 1 . . 4 . . . . . . . . . Open Door 7 | . . . . 2 . 1 . . . . . . . . . . 1 . 1 . . . . . . . . . . 1 . 1 . Branch Access Points 8 | . . . 1 . . . 1 . 1 . . . . . . 1 . . . . 1 . . . . 1 . . 1 . 1 . . Emergency Access Points 2 | . . . . . . . . . . . . . . . . . . . . . 2 . . . . . . . . . . . . Machine Index 3 | . . . . . . . . . . . . . . . . . . . . . 1 . . . . . . . 1 . 1 . . Terminal Index 7 | . 1 . 1 1 2 . . . 1 . . . . . . . . . . . . . . . . . . 1 . . . . . Garrison Index 1 | . . . . . . . . . . . . . . . . . . . . . . . . . . 1 . . . . . . . Unreport Threat 18 | . . . 1 . . . 1 . 2 . . . . . . 2 . . . . 2 . . . . 1 2 . 1 3 3 . . Locate Traps 7 | . . . 1 . . . 1 . . . . . . . . 1 . . . . 2 . . . . . . 1 . 1 . . . Reprogram Traps 2 | . . . . . . . . . . . . . . . . . . . . . 1 . . . . 1 . . . . . . . Surveillance Status 1 | . . . . . . . . . . . . . . . . . . . . . 1 . . . . . . . . . . . . Transport Status 2 | . . . . . . . . . . . . . . . . 2 . . . . . . . . . . . . . . . . . Recall Investigation 2 | . . . . . . . . . . . . . . . . . . . . . . . . . . . . . 1 . 1 . . Recall Extermination 1 | . . . . . . . . . . . . . . . . . . . . . . . . . . . . . . . 1 . . Hauler Manifests 6 | . . . . . . . . . 2 . . . . . . 2 . . . . 1 . . . . . 1 . . . . . . Registered Components 6 | . . . . . 1 . . . 1 . . . . . . 1 . . . . . . . . . 1 1 . 1 . . . . Registered Prototypes 3 | . . . . . . . . . 1 . . . . . . . . . . . . . . . . 1 . . 1 . . . . Zone Layout 6 | . . . . . 1 . . . . . . . . 2 . 1 . . . . 1 . . . . 1 . . . . . . . Proto ID Catalog 2 | . . . . . . 1 . . . . . . . . . . . . . . . . . . . . . 1 . . . . . Gate Test 138-A 1 | . . . . . . . . . . . . . . . . . . . . . . . . . . . . . . . . . 1 Fabricator Hacks 14 | . . . . . . . . . 4 . . . . 4 . 2 . . . . 2 . . . . . . . . . 2 . . Network Status 5 | . . . . . . . . . 1 . . . . 2 . 1 . . . . 1 . . . . . . . . . . . . Load Schematic 7 | . . . . . . . . . 2 . . . . 2 . 1 . . . . 1 . . . . . . . . . 1 . . Build 2 | . . . . . . . . . 1 . . . . . . . . . . . . . . . . . . . . . 1 . . Repair Station Hacks 6 | . . . . . . . . . 3 . . . . . . 3 . . . . . . . . . . . . . . . . . Scan Component 4 | . . . . . . . . . 2 . . . . . . 2 . . . . . . . . . . . . . . . . . Repair 2 | . . . . . . . . . 1 . . . . . . 1 . . . . . . . . . . . . . . . . . Recycling Unit Hacks 25 | . 2 . 2 1 4 . 2 . 3 . . . . 3 . 3 . . . . 4 . . . . 1 . . . . . . . Retrieve Components 25 | . 2 . 2 1 4 . 2 . 3 . . . . 3 . 3 . . . . 4 . . . . 1 . . . . . . . Scanalyzer 14 | . . . . . . . 1 . 5 . . . . . . 1 . . . . . . . . . 4 . . . 3 . . . Insert Component 10 | . . . . . . . 1 . 3 . . . . . . 1 . . . . . . . . . 2 . . . 3 . . . Analyze 4 | . . . . . . . . . 2 . . . . . . . . . . . . . . . . 2 . . . . . . . Garrison Access Hacks 7 | . . . . . . . . . . . . . . 1 . . . . . . 1 . . . . 1 1 1 1 . 1 . . Seal Access 7 | . . . . . . . . . . . . . . 1 . . . . . . 1 . . . . 1 1 1 1 . 1 . . Unauthorized Hacks 72 | . 6 . 8 6 12 . 6 . 6 . . . . 6 . 9 . . . . 10 . . . . 1 . . 1 . 1 . . Terminals 38 | . 4 . 8 6 8 . 4 . 2 . . . . 1 . 2 . . . . 2 . . . . . . . . . 1 . . Assimilate 4 | . . . . . . . . . 1 . . . . . . 2 . . . . . . . . . . . . . . 1 . . Botnet 10 | . 2 . 2 1 3 . 1 . . . . . . . . . . . . . 1 . . . . . . . . . . . . Operators 1 | . . . . . . . . . . . . . . . . . . . . . 1 . . . . . . . . . . . . Skim 23 | . 2 . 6 5 5 . 3 . 1 . . . . 1 . . . . . . . . . . . . . . . . . . . Fabricators 9 | . . . . . . . 1 . 3 . . . . 1 . 2 . . . . 2 . . . . . . . . . . . . Prioritize 1 | . . . . . . . . . 1 . . . . . . . . . . . . . . . . . . . . . . . . Haulers 4 | . . . . . . . 1 . 1 . . . . . . 1 . . . . 1 . . . . . . . . . . . . Recompile 4 | . . . . . . . . . 1 . . . . 1 . 1 . . . . 1 . . . . . . . . . . . . Repair Stations 7 | . . . . . . . 1 . 1 . . . . 1 . . . . . . 2 . . . . 1 . . 1 . . . . Patch 7 | . . . . . . . 1 . 1 . . . . 1 . . . . . . 2 . . . . 1 . . 1 . . . . Recycling Units 18 | . 2 . . . 4 . . . . . . . . 3 . 5 . . . . 4 . . . . . . . . . . . . Monitor 1 | . . . . . . . . . . . . . . . . 1 . . . . . . . . . . . . . . . . . Reject 2 | . . . . . . . . . . . . . . . . 1 . . . . 1 . . . . . . . . . . . . Recyclers 1 | . . . . . . . . . . . . . . . . 1 . . . . . . . . . . . . . . . . . Mask 8 | . . . . . . . . . . . . . . 3 . 2 . . . . 3 . . . . . . . . . . . . Tunnel 6 | . 2 . . . 4 . . . . . . . . . . . . . . . . . . . . . . . . . . . . Scanalyzers . | . . . . . . . . . . . . . . . . . . . . . . . . . . . . . . . . . . Garrison Access . | . . . . . . . . . . . . . . . . . . . . . . . . . . . . . . . . . . Data Cores Recovered 7 | . . . . 1 . . 1 . . . . . . . . 1 . . . . . . . . . 1 1 . 1 1 . . . Used 2 | . . . . . . . 1 . . . . . . . . . . . . . . . . . . . 1 . . . . . . Hacking Detections 136 | . 4 . 9 9 6 . 14 . 19 . . . . 9 . 20 . 1 . . 16 . . . . 7 6 2 3 4 7 . . Full Trace Events 8 | . . . . . 1 . 2 . 2 . . . . 1 . 1 . . . . . . . . . . . . . . 1 . . Feedback Events 1 | . . . . . . . . . 1 . . . . . . . . . . . . . . . . . . . . . . . . Corruption 1 | . . . . . . . . . 1 . . . . . . . . . . . . . . . . . . . . . . . . Feedback Blocked . | . . . . . . . . . . . . . . . . . . . . . . . . . . . . . . . . . . Robot Schematics Acquired 9 | . . . . . . . . . . . . 7 . . . . . . . . . . . . . . . 2 . . . . . Robots Built . | . . . . . . . . . . . . . . . . . . . . . . . . . . . . . . . . . . Authchips . | . . . . . . . . . . . . . . . . . . . . . . . . . . . . . . . . . . Time . | . . . . . . . . . . . . . . . . . . . . . . . . . . . . . . . . . . Total Robot Build Rating . | . . . . . . . . . . . . . . . . . . . . . . . . . . . . . . . . . . Part Schematics Acquired 26 | . . . . . . . . . 2 . . 9 . . . . . . . . 1 . . 4 . 1 . 5 . 3 1 . . Parts Built 2 | . . . . . . . . . 1 . . . . . . . . . . . . . . . . . . . . . 1 . . Authchips 1 | . . . . . . . . . 1 . . . . . . . . . . . . . . . . . . . . . . . . Time 213 | . . . . . . . . . 102 . . . . . . . . . . . . . . . . . . . . . 111 . . Total Part Build Rating 17 | . . . . . . . . . 8 . . . . . . . . . . . . . . . . . . . . . 9 . . Parts Repaired 2 | . . . . . . . . . 1 . . . . . . 1 . . . . . . . . . . . . . . . . . Time 88 | . . . . . . . . . 54 . . . . . . 34 . . . . . . . . . . . . . . . . . Parts Recycled . | . . . . . . . . . . . . . . . . . . . . . . . . . . . . . . . . . . Recycled Matter . | . . . . . . . . . . . . . . . . . . . . . . . . . . . . . . . . . . Retrieved Matter . | . . . . . . . . . . . . . . . . . . . . . . . . . . . . . . . . . . Retrieved Components 75 | . 18 . 4 7 13 . 6 . 5 . . . . 3 . 9 . . . . 7 . . . . 3 . . . . . . . Parts Scanalyzed 3 | . . . . . . . 1 . 1 . . . . . . . . . . . . . . . . 1 . . . . . . . Part Schematics Acquired 3 | . . . . . . . . . 2 . . . . . . . . . . . . . . . . 1 . . . . . . . Parts Damaged 1 | . . . . . . . 1 . . . . . . . . . . . . . . . . . . . . . . . . . . Bothacking | -11 -10 -10 -9 -9 -9 -9 -6 -6 -6 -6 -6 -6 -5 -5 -5 -5 -5 -5 -5 -4 -4 -4 -4 -4 -3 -3 -3 -3 -2 -2 -1 -1 -1 ------------ Run | Yrd Mat Min Mat Sto Rec Scr Fac Was Fac Low Low Dat Pro Fac Was Fac Upp Upp War Pro Fac Upp Upp Zhi Pro Res Qua Frg Res Tes Acc Com Ac0 Used RIF Installer . | . . . . . . . . . . . . . . . . . . . . . . . . . . . . . . . . . . Robots Hacked 2 | . . . . . . . 1 . . . . . . . . . . . . . . . . . . . . 1 . . . . . Non-combat 1 | . . . . . . . 1 . . . . . . . . . . . . . . . . . . . . . . . . . . Combat 1 | . . . . . . . . . . . . . . . . . . . . . . . . . . . . 1 . . . . . Robot Hacks Applied 2 | . . . . . . . 1 . . . . . . . . . . . . . . . . . . . . 1 . . . . . parse_system 1 | . . . . . . . . . . . . . . . . . . . . . . . . . . . . 1 . . . . . find_chute 1 | . . . . . . . 1 . . . . . . . . . . . . . . . . . . . . . . . . . . Relay Couplers Released . | . . . . . . . . . . . . . . . . . . . . . . . . . . . . . . . . . . Fabnet Peak Effective % . | . . . . . . . . . . . . . . . . . . . . . . . . . . . . . . . . . . Robots Rewired 11 | . . . . . 10 . . . 1 . . . . . . . . . . . . . . . . . . . . . . . . Allies Hacked . | . . . . . . . . . . . . . . . . . . . . . . . . . . . . . . . . . . Hacks Repelled . | . . . . . . . . . . . . . . . . . . . . . . . . . . . . . . . . . . Allies | -11 -10 -10 -9 -9 -9 -9 -6 -6 -6 -6 -6 -6 -5 -5 -5 -5 -5 -5 -5 -4 -4 -4 -4 -4 -3 -3 -3 -3 -2 -2 -1 -1 -1 -------- Run | Yrd Mat Min Mat Sto Rec Scr Fac Was Fac Low Low Dat Pro Fac Was Fac Upp Upp War Pro Fac Upp Upp Zhi Pro Res Qua Frg Res Tes Acc Com Ac0 Total Allies 47 | . . . . 12 10 . . 20 2 . . . . . . 2 . . . . . . . . . . . . . . 1 . . Largest Group 20 | . . . . 10 10 10 . 20 1 . . . . . . 1 . . . . . . . . . . . . . . 1 . . Highest-Rated Group 745 | . . . . 102 119 119 . 745 26 . . . . . . 26 . . . . . . . . . . . . . . 40 . . Highest-Rated Ally 50 | . . . . 31 34 34 . 50 26 . . . . . . 26 . . . . . . . . . . . . . . 40 . . Total Orders 2 | . . . . . . 2 . . . . . . . . . . . . . . . . . . . . . . . . . . . STAY 2 | . . . . . . 2 . . . . . . . . . . . . . . . . . . . . . . . . . . . Ally Attacks 110 | . . . . 83 14 13 . . . . . . . . . . . . . . . . . . . . . . . . . . . Total Damage 1438 | . . . . 908 178 352 . . . . . . . . . . . . . . . . . . . . . . . . . . . Kills 22 | . . . . 15 1 6 . . . . . . . . . . . . . . . . . . . . . . . . . . . Allies Corrupted . | . . . . . . . . . . . . . . . . . . . . . . . . . . . . . . . . . . Allies Melted 4 | . . . . . . 3 . . . . . . . . . . . . 1 . . . . . . . . . . . . . . Intel | -11 -10 -10 -9 -9 -9 -9 -6 -6 -6 -6 -6 -6 -5 -5 -5 -5 -5 -5 -5 -4 -4 -4 -4 -4 -3 -3 -3 -3 -2 -2 -1 -1 -1 ------- Run | Yrd Mat Min Mat Sto Rec Scr Fac Was Fac Low Low Dat Pro Fac Was Fac Upp Upp War Pro Fac Upp Upp Zhi Pro Res Qua Frg Res Tes Acc Com Ac0 Active Infowar (turns) 10788 | 52 216 . . . . . 819 108 577 461 . . . 165 25 541 238 145 969 181 787 104 134 46 198 81 318 583 258 238 416 1987 1141 Optics 5034 | . . . . . . . 522 . . . . . . . . . . . . . . . . . . . 263 548 207 238 358 1757 1141 Sensors 3629 | . . . . . . . 428 . . . . . . . . 518 238 145 969 181 774 104 134 46 92 . . . . . . . . IFF 1340 | . . . . . . . 113 108 470 436 . . . 165 25 23 . . . . . . . . . . . . . . . . . Terrain 249 | 46 203 . . . . . . . . . . . . . . . . . . . . . . . . . . . . . . . . Structural 2422 | . . . . . . . 345 . 127 25 . . . . . 104 . . 472 . 256 39 . . 106 81 233 77 257 139 . . 161 Seismic 268 | 52 216 . . . . . . . . . . . . . . . . . . . . . . . . . . . . . . . . Jamming 2593 | . . . . . . . . . . . . . . . . . . . . . . . . . . . 57 551 258 238 388 1101 . ECM 44 | . . . . . . . 42 . . . . . . . . . . . . . . . . . . . . . 2 . . . . Robot Analysis Total 8 | . . . 1 . . . . . . . . . . . . . . . . . . . . 4 . . . . . 3 . . . Derelict Logs Recovered 13 | . . 1 . . . . . . . 2 1 . 2 . . . 2 2 . 1 . . 2 . . . . . . . . . . Drone Launches . | . . . . . . . . . . . . . . . . . . . . . . . . . . . . . . . . . . Drone Recoveries . | . . . . . . . . . . . . . . . . . . . . . . . . . . . . . . . . . . Exploration | -11 -10 -10 -9 -9 -9 -9 -6 -6 -6 -6 -6 -6 -5 -5 -5 -5 -5 -5 -5 -4 -4 -4 -4 -4 -3 -3 -3 -3 -2 -2 -1 -1 -1 ------------- Run | Yrd Mat Min Mat Sto Rec Scr Fac Was Fac Low Low Dat Pro Fac Was Fac Upp Upp War Pro Fac Upp Upp Zhi Pro Res Qua Frg Res Tes Acc Com Ac0 Turns Passed 22295 | 181 1358 888 2205 1508 1948 2245 857 110 845 572 133 21 99 282 25 735 238 145 997 181 788 104 134 46 199 228 388 583 258 238 425 2174 1157 Spaces Moved 33550 | 78 632 520 1004 669 703 2242 2183 295 2403 1150 559 89 390 908 92 2139 577 473 1756 314 2395 424 568 154 523 784 881 1459 634 562 932 2541 2517 Core 16 | 2 . . . . . . . . . . . . . . . . . . 14 . . . . . . . . . . . . . . Treads 4296 | 76 627 520 1004 669 703 697 . . . . . . . . . . . . . . . . . . . . . . . . . . . Legs 5 | . 5 . . . . . . . . . . . . . . . . . . . . . . . . . . . . . . . . Wheels . | . . . . . . . . . . . . . . . . . . . . . . . . . . . . . . . . . . Hover 6184 | . . . . . . . . . . . . . . . . . . . . . . . . . . . . . . 194 932 2541 2517 Flight 23049 | . . . . . . 1545 2183 295 2403 1150 559 89 390 908 92 2139 577 473 1742 314 2395 424 568 154 523 784 881 1459 634 368 . . . Fastest Speed 7 | 50 160 160 160 160 240 31 7 23 19 19 23 23 23 20 24 24 28 28 25 25 21 21 21 21 21 21 16 20 21 21 33 33 20 Average Speed 47 | 157 165 160 160 196 240 96 26 23 22 22 23 23 23 23 24 25 28 28 28 25 21 21 21 21 21 21 22 21 21 25 33 34 29 Slowest Speed 260 | 160 260 160 160 240 240 240 106 23 24 23 23 23 23 96 24 105 28 28 250 25 99 21 21 21 21 25 23 27 21 87 33 87 67 Overloaded Moves 21 | . . . . . . . 8 . . . . . . . . . . . . . . . . . . . 12 1 . . . . . Propulsion Burnouts . | . . . . . . . . . . . . . . . . . . . . . . . . . . . . . . . . . . Robots Hopped 81 | . . . . . . 2 6 . 21 2 . . . 5 . 7 . . 6 . 13 . . . . 1 7 8 . 3 . . . Potential Cave-ins 10 | . . . . . . 2 . . 2 . . . . . . . . . . . . . . . . . . 6 . . . . . Cave-ins Triggered . | . . . . . . . . . . . . . . . . . . . . . . . . . . . . . . . . . . Teleports 5 | . . . . . . . . . . . . . . . . . . . . . . . . . . . 1 2 . . . 1 1 Exploration Rate (%) 65 | 5 96 98 72 77 93 90 54 95 63 88 82 73 65 30 73 67 80 67 92 56 59 70 69 61 72 30 75 39 16 50 26 51 92 Regions Visited 33 Branch Regions 21 Pre-discovered Areas 21 | . 2 . . 3 4 5 . . . . 2 1 . . . . . 1 . . . . . 3 . . . . . . . . . Known Exits Taken 19 | . . . 1 . 1 1 . . 1 1 . . 1 . . 1 1 1 1 1 1 1 1 1 1 1 . . 1 . 1 . . Unknown Exits Taken 10 | 1 1 1 . 1 . . . . . . 1 1 . . . . . . . . . . . . . . 1 1 . 1 . 1 . Scrap Searched 30 | . . 2 . . . 7 . . . 3 3 . 1 . . . 2 2 . 3 . 2 2 . 3 . . . . . . . . Spaces Dug 321 | . . . 13 . . 1 15 . 58 18 12 . 15 25 . 31 7 3 5 . 40 1 . . 3 13 6 3 2 3 13 25 9 Terrain Destroyed 490 | . . . 55 . 3 1 15 . 57 18 12 . 15 25 . 83 7 3 5 . 40 1 . . 3 13 6 3 2 3 13 38 69 Melee 179 | . . . . . . 1 15 . 9 2 . . . 2 . 17 7 3 5 . 40 1 . . 3 13 6 3 2 3 13 25 9 Projectile . | . . . . . . . . . . . . . . . . . . . . . . . . . . . . . . . . . . AOE 206 | . . . 55 . 3 . . . 23 . . . . . . 52 . . . . . . . . . . . . . . . 13 60 Terrain Rammed . | . . . . . . . . . . . . . . . . . . . . . . . . . . . . . . . . . . Walls Destroyed . | . . . . . . . . . . . . . . . . . . . . . . . . . . . . . . . . . . Machines Disabled . | . . . . . . . . . . . . . . . . . . . . . . . . . . . . . . . . . . Actions | -11 -10 -10 -9 -9 -9 -9 -6 -6 -6 -6 -6 -6 -5 -5 -5 -5 -5 -5 -5 -4 -4 -4 -4 -4 -3 -3 -3 -3 -2 -2 -1 -1 -1 --------- Run | Yrd Mat Min Mat Sto Rec Scr Fac Was Fac Low Low Dat Pro Fac Was Fac Upp Upp War Pro Fac Upp Upp Zhi Pro Res Qua Frg Res Tes Acc Com Ac0 Total 38975 | 104 789 555 1450 776 919 2328 2396 326 2624 1433 562 88 394 961 95 2260 639 477 2239 415 2577 434 580 165 606 828 1041 1685 756 656 1045 3805 2967 Wait 3016 | . 35 6 276 18 34 23 88 21 101 259 2 . . 23 . 31 53 . 453 102 84 6 11 . 75 . 104 43 108 9 50 971 30 Move 33364 | 77 631 519 1003 668 702 2238 2171 294 2365 1145 558 88 389 898 91 2125 576 472 1744 313 2369 423 567 153 522 781 866 1441 633 555 931 2540 2516 Hop 71 | . . . . . . 1 6 . 16 2 . . . 5 . 6 . . 5 . 12 . . . . 1 7 7 . 3 . . . Pick Up 195 | 2 11 7 16 14 . 12 14 2 8 1 . . . 6 2 9 1 . 3 . 6 . . 2 . 4 11 27 3 4 . 24 6 Fast Attach 115 | 7 4 2 8 2 1 2 20 . 8 . 1 . . 3 . 6 . . 6 . 6 . . 1 1 3 4 10 . 9 2 4 5 Attach 89 | . 2 . 6 . . 5 4 . 5 2 1 . . 3 . 4 . . 2 . 3 . . 2 . 2 3 8 3 8 1 11 14 Detach 58 | . 1 . 1 . . 1 3 . 1 2 . . . 3 . 7 . . 2 . 1 . . . . 1 . 4 . 9 2 9 11 Swap 258 | . 5 . 18 14 7 4 18 4 26 9 . . 1 4 . 9 . . 6 . 13 1 2 4 1 4 10 30 3 9 . 28 28 Drop 229 | . 2 7 23 14 5 30 26 . 12 1 . . 1 7 2 10 . . 9 . 5 . . 3 1 6 11 13 . 15 . 19 7 Fire 294 | 18 88 11 93 44 20 . . . 1 . . . . . . 1 . . . . . . . . . . . . . . . 17 1 Melee 998 | . . . . . . 12 45 5 41 12 . . 3 9 . 36 9 5 9 . 67 4 . . 6 26 25 78 6 17 59 182 342 Ram . | . . . . . . . . . . . . . . . . . . . . . . . . . . . . . . . . . . Kick . | . . . . . . . . . . . . . . . . . . . . . . . . . . . . . . . . . . Crush 25 | . 10 3 6 2 4 . . . . . . . . . . . . . . . . . . . . . . . . . . . . Escape Stasis 99 | . . . . . . . . . 31 . . . . . . 15 . . . . 11 . . . . . . 24 . 18 . . . Rewire 162 | . . . . . 146 . . . 9 . . . . . . . . . . . . . . . . . . . . . . . 7 Trap 2 | . . . . . . . 1 . . . . . . . . 1 . . . . . . . . . . . . . . . . . Miscellaneous . | . . . . . . . . . . . . . . . . . . . . . . . . . . . . . . . . . . Route ------- -11/Scrapyard -10/Materials (discovered 5 exits: *Mat x3 / [*Min] / [*Sub]) -10/Mines (discovered 3 exits: *Mat x2 / [*Exi]) -9/Materials (discovered 7 exits: *Mat x3 / *Min x2 / *Sto x2) -9/Storage (discovered 2 exits: *Mat / *Rec) -9/Recycling (discovered 2 exits: [*Fac] / *Scr) -9/Scraptown (discovered 2 exits: *Fac x2) -6/Factory (discovered 6 exits: Fac x4 / *Low x2) -6/Waste -6/Factory (discovered 4 exits: *Fac x2 / *Low x2) -6/Lower Caves -6/Lower Caves (discovered 2 exits: *Fac / *Dat) -6/Data Miner -5/Proximity Caves -5/Factory (discovered 3 exits: *Fac x2 / Upp) -5/Waste -5/Factory (discovered 5 exits: *Fac x3 / *Upp x2) -5/Upper Caves -5/Upper Caves -5/Warlord -4/Proximity Caves -4/Factory (discovered 7 exits: *Res x2 / *Upp x2 / *Ext x2 / Arm) -4/Upper Caves -4/Upper Caves (discovered 2 exits: Res / *Zhi) -4/Zhirov -3/Proximity Caves -3/Research (discovered 2 exits: *Qua x2) -3/Quarantine (discovered 2 exits: [*Sec] / *Frg) -3/Protoforge -2/Research (discovered 2 exits: *Tes x2) -2/Testing -1/Access (discovered 2 exits: Sur / *Com) -1/Command (discovered 3 exits: *Sur x2 / *Ac0) -1/Access_0 0b11 Command History --------- Turn | Location | Event 15 | -11/Scrapyard | Discovered new exit (range 16) 182 | -11/Scrapyard | Entered Materials 316 | -10/Materials | Build established: Mutant 322 | -10/Materials | Discovered new exit (range 7) 682 | -10/Materials | Discovered new exit (range 14) 828 | -10/Materials | Discovered new exit (range 3) 846 | -10/Materials | Discovered new exit (range 15) 1024 | -10/Materials | Core integrity fell below 50% 1048 | -10/Materials | Lost 4 parts (1p2n1u) 1383 | -10/Materials | Discovered new exit (range 9) 1540 | -10/Materials | Entered Mines 1614 | -10/Mines | Deemed a non-threat by the Exiles lab entrance 1614 | -10/Mines | Discovered new exit (range 5) 1633 | -10/Mines | Discovered new exit (range 8) 1702 | -10/Mines | Learned Materials security intel 2208 | -10/Mines | Discovered new exit (range 11) 2332 | -10/Mines | Build established: Scavenger-Mutant 2428 | -10/Mines | Entered Materials 2428 | -9/Materials | Evolved 2 slots: Propulsion x2 2688 | -9/Materials | Discovered new exit (range 15) 2892 | -9/Materials | Discovered new exit (range 14) 2892 | -9/Materials | Discovered new exit (range 16) 2965 | -9/Materials | Discovered new exit (range 16) 3042 | -9/Materials | Build established: Mutant 3084 | -9/Materials | Discovered new exit (range 8) 3140 | -9/Materials | Identified exit to Mines 3140 | -9/Materials | Identified exit to Storage 3283 | -9/Materials | Discovered new exit (range 13) 4028 | -9/Materials | First assault squad dispatched 4385 | -9/Materials | Loaded intel: 5 trap records 4434 | -9/Materials | Identified exit to Materials 4471 | -9/Materials | Loaded intel: 12 terminal locations 4500 | -9/Materials | Learned Recycling recycling unit intel 4521 | -9/Materials | Learned Materials security intel 4595 | -9/Materials | Learned location of 1 exit from Storage 4633 | -9/Materials | Entered Storage 4734 | -9/Storage | Assisted by bots powering up and referring to "LRC-V3" 4793 | -9/Storage | Lost 6 allies 5096 | -9/Storage | Build established: Scavenger-Mutant 5226 | -9/Storage | Used back door to open Recycling access 5226 | -9/Storage | Discovered new exit (range 5) 5438 | -9/Storage | Met a pair of Derelict thieves 5523 | -9/Storage | Core integrity fell below 50% 5556 | -9/Storage | Lost 4 allies 5797 | -9/Storage | Learned 2 Materials zone layouts 5803 | -9/Storage | Learned 4 Recycling zone layouts 5815 | -9/Storage | Learned Materials trap positions 6141 | -9/Storage | Entered Recycling 6141 | -9/Recycling | Accompanied by 1 ally 6142 | -9/Recycling | Identified exit to Scraptown 6143 | -9/Recycling | Loaded intel: 5 recycling unit locations 6933 | -9/Recycling | Discovered new exit (range 16) 6997 | -9/Recycling | Learned 4 Materials zone layouts 7054 | -9/Recycling | Learned Storage garrison access intel 7099 | -9/Recycling | Learned Storage stockpile data 7136 | -9/Recycling | Learned location of 2 exits from Materials 7161 | -9/Recycling | Learned Materials emergency access door positions 7176 | -9/Recycling | Learned location of 1 exit from Recycling 7203 | -9/Recycling | Learned location of 1 exit from Storage 7284 | -9/Recycling | Learned Recycling recycling unit intel 7339 | -9/Recycling | Learned location of 1 exit from Storage 7483 | -9/Recycling | Build established: Commander-Mutant 7995 | -9/Recycling | Scanned before Scraplab entrance 8031 | -9/Recycling | Entered Scraplab 8089 | -9/Recycling | Entered Scraptown 8089 | -9/Scraptown | Accompanied by 10 allies 8089 | -9/Scraptown | System corruption cleaned by C-Scrubber 8532 | -9/Scraptown | Discovered new exit (range 11) 8702 | -9/Scraptown | Visited Awakened 8769 | -9/Scraptown | Visited Cave Peace 8808 | -9/Scraptown | Visited Fellowship of the Rings 8846 | -9/Scraptown | Visited Assassins FH 8868 | -9/Scraptown | Visited UFD Registry 8868 | -9/Scraptown | Registered with UFD as "Flexiface" 8944 | -9/Scraptown | Visited Red Mages 9431 | -9/Scraptown | Visited Cartography Club 9474 | -9/Scraptown | Visited Science Guys 9522 | -9/Scraptown | Visited Sword Containment 9601 | -9/Scraptown | Visited LU-1G1's Boring Crew 9676 | -9/Scraptown | Visited Derelict Rescue Squad 9721 | -9/Scraptown | Visited DA-N13 Charitable Foundation 9743 | -9/Scraptown | Found DCF Scrap (27 items) 9790 | -9/Scraptown | Visited Chapter 10 9813 | -9/Scraptown | Visited Curators Association 9824 | -9/Scraptown | Visited Scrap Suit Storage 9828 | -9/Scraptown | Visited Abandonware Association 9832 | -9/Scraptown | Learned abandonware demo "REPAIR.EXE" 9832 | -9/Scraptown | Learned abandonware demo "MELTYB.EXE" 9850 | -9/Scraptown | Found Surveybot 17 Chip 9886 | -9/Scraptown | Learned location of Proximity Caves (-6) 9886 | -9/Scraptown | Learned location of Zion (-7) 9886 | -9/Scraptown | Learned location of Warlord (-5) 9886 | -9/Scraptown | Learned 16 Materials zone layouts 9886 | -9/Scraptown | Learned 8 Access zone layouts 9886 | -9/Scraptown | Learned 4 Mines zone layouts 9886 | -9/Scraptown | Learned 20 Upper Caves zone layouts 9886 | -9/Scraptown | Learned 20 Proximity Caves zone layouts 9886 | -9/Scraptown | Learned 4 Hub_04(d) zone layouts 9886 | -9/Scraptown | Learned location of 2 exits from Factory 9886 | -9/Scraptown | Learned location of 1 exit from Upper Caves 9886 | -9/Scraptown | Learned location of 2 exits from Proximity Caves 9886 | -9/Scraptown | Identified exit to Factory 9961 | -9/Scraptown | Found Deep Structural Scanner 10072 | -9/Scraptown | Build established: Commander-Sprinter 10077 | -9/Scraptown | Visited TADAMA 10084 | -9/Scraptown | Visited Junk Repository 10202 | -9/Scraptown | Met Optimus 10202 | -9/Scraptown | Accepted into 0bPrime 10233 | -9/Scraptown | Civil war broke out across Scraptown 10316 | -9/Scraptown | Core integrity fell below 20% 10316 | -9/Scraptown | Found Prototype Special Weapon 10316 | -9/Scraptown | Identified LU-1G1's Laser Shovel 10334 | -9/Scraptown | Entered Factory 10334 | -6/Factory | Evolved 6 slots: Propulsion x2, Utility x4 10335 | -6/Factory | Identified exit to Factory 10335 | -6/Factory | Identified exit to Lower Caves 10365 | -6/Factory | Lost 13 allies 10416 | -6/Factory | Discovered exit to Lower Caves (range 5) 10598 | -6/Factory | Build established: Infiltrator-Sprinter 10790 | -6/Factory | Spotted B-75 Beast 10887 | -6/Factory | Cargo convoy interrupted 10900 | -6/Factory | Build established: Scout 10920 | -6/Factory | Found PL-3XN's Ring of Power 11191 | -6/Factory | Manually triggered Chute Trap 11191 | -6/Factory | Sucked down chute 11191 | -6/Factory | Entered Waste 11192 | -6/Waste | Joined by Warlord forces that had cleared the area 11298 | -6/Waste | Discovered new exit (range 13) 11301 | -6/Waste | Entered Factory 11385 | -6/Factory | Build established: Sprinter 11879 | -6/Factory | Discovered exit to Factory (range 6) 11913 | -6/Factory | Repaired Quantum Shading Machine 12061 | -6/Factory | Fabricated Cld. Impulse Thruster? 12109 | -6/Factory | Build established: Hacker-Sprinter 12122 | -6/Factory | Spotted B-75 Beast 12127 | -6/Factory | Discovered exit to Factory (range 8) 12141 | -6/Factory | Discovered exit to Lower Caves (range 5) 12146 | -6/Factory | Entered Lower Caves 12179 | -6/Lower Caves | Encountered a Warlord checkpoint 12266 | -6/Lower Caves | Identified exit to Lower Caves 12581 | -6/Lower Caves | Spotted B-75 Beast 12715 | -6/Lower Caves | Learned Factory terminal intel 12718 | -6/Lower Caves | Entered another Lower Caves area 12719 | -6/Lower Caves | Encountered a Warlord checkpoint 12725 | -6/Lower Caves | Discovered exit to Factory (range 6) 12814 | -6/Lower Caves | Discovered new exit (range 6) 12836 | -6/Lower Caves | Learned Extension security intel 12836 | -6/Lower Caves | Learned Research emergency access door positions 12836 | -6/Lower Caves | Learned location of 1 exit from Factory 12836 | -6/Lower Caves | Learned location of Armory (-4) 12851 | -6/Lower Caves | Entered Data Miner 12851 | -6/Data Miner | Discovered new exit (range 6) 12856 | -6/Data Miner | Met Data Miner 12863 | -6/Data Miner | Learned location of Section 7 (-3) 12863 | -6/Data Miner | Acquired the access code to Warlord's prototype stash 12864 | -6/Data Miner | Received God Mode back door access code from Data Miner 12872 | -6/Data Miner | Entered Proximity Caves 12876 | -5/Proximity Caves | Learned location of 1 exit from Factory 12951 | -5/Proximity Caves | Learned Factory trap positions 12971 | -5/Proximity Caves | Entered Factory 12971 | -5/Factory | Evolved 2 slots: Power x1, Utility x1 12972 | -5/Factory | Identified exit to Upper Caves 12972 | -5/Factory | Identified exit to Factory 12973 | -5/Factory | Loaded intel: 116 trap records 12974 | -5/Factory | Loaded intel: 26 terminal locations 13228 | -5/Factory | Discovered exit to Factory (range 11) 13253 | -5/Factory | Manually triggered Chute Trap 13253 | -5/Factory | Sucked down chute 13253 | -5/Factory | Entered Waste 13258 | -5/Waste | Spotted C-40 Crusher 13259 | -5/Waste | Spotted C-40 Crusher 13259 | -5/Waste | Spotted C-40 Crusher 13259 | -5/Waste | Spotted C-40 Crusher 13268 | -5/Waste | Spotted C-40 Crusher 13272 | -5/Waste | Spotted C-40 Crusher 13272 | -5/Waste | Discovered new exit (range 15) 13278 | -5/Waste | Entered Factory 13440 | -5/Factory | Discovered exit to Factory (range 4) 13497 | -5/Factory | Repaired Impulse Thruster Array? 13557 | -5/Factory | Found Imp. Powered Armor 13599 | -5/Factory | Discovered exit to Factory (range 13) 13669 | -5/Factory | Discovered exit to Factory (range 5) 13683 | -5/Factory | Found Prototype Launcher 13683 | -5/Factory | Identified Tesla Bomb Launcher 13983 | -5/Factory | Garrison activated, responded to threat 13984 | -5/Factory | Cargo convoy interrupted 14013 | -5/Factory | Entered Upper Caves 14014 | -5/Upper Caves | Identified exit to Upper Caves 14036 | -5/Upper Caves | Encountered a Warlord checkpoint 14083 | -5/Upper Caves | Learned 8 Factory zone layouts 14098 | -5/Upper Caves | Learned Research security intel 14098 | -5/Upper Caves | Learned Armory emergency access door positions 14098 | -5/Upper Caves | Learned Research emergency access door positions 14098 | -5/Upper Caves | Learned Research trap positions 14251 | -5/Upper Caves | Entered another Upper Caves area 14282 | -5/Upper Caves | Learned Extension security intel 14282 | -5/Upper Caves | Learned Factory security intel 14282 | -5/Upper Caves | Learned location of 1 exit from Proximity Caves 14297 | -5/Upper Caves | Learned Factory stockpile data 14368 | -5/Upper Caves | Encountered a Warlord checkpoint 14375 | -5/Upper Caves | Discovered new exit (range 9) 14392 | -5/Upper Caves | Spotted B-75 Beast 14396 | -5/Upper Caves | Identified exit to Warlord 14396 | -5/Upper Caves | Entered Warlord 14397 | -5/Warlord | Identified exit to Proximity Caves 14545 | -5/Warlord | Received a Watcher feed algorithm from an ecstatic Tinkerer 14575 | -5/Warlord | Warlord's base attacked by MAIN.C 14585 | -5/Warlord | Opened Warlord's prototype stash 14587 | -5/Warlord | Found Prototype Reactor 14587 | -5/Warlord | Identified Vortex Chain Reactor 14596 | -5/Warlord | Found Prototype Hackware 14599 | -5/Warlord | Found Prototype Processor 14604 | -5/Warlord | Found Prototype Device 14604 | -5/Warlord | Identified Thermal Barrier 14817 | -5/Warlord | Build established: Scout 14822 | -5/Warlord | Warlord forces counterattacked 14905 | -5/Warlord | Lost 3 allies 15050 | -5/Warlord | Identified Exp. Targeting Computer 15051 | -5/Warlord | Identified System Mapper 15084 | -5/Warlord | Lost 21 allies 15098 | -5/Warlord | Spotted B-86 Titan 15233 | -5/Warlord | Spotted Striker 15250 | -5/Warlord | Warlord base infiltrated, sounded retreat 15367 | -5/Warlord | Spotted Striker 15387 | -5/Warlord | Spotted Striker 15387 | -5/Warlord | Spotted Striker 15393 | -5/Warlord | Entered Proximity Caves 15407 | -4/Proximity Caves | Build established: Hacker-Sprinter 15574 | -4/Proximity Caves | Entered Factory 15574 | -4/Factory | Evolved 2 slots: Propulsion x1, Utility x1 15575 | -4/Factory | Identified exit to Research 15575 | -4/Factory | Identified exit to Upper Caves 15575 | -4/Factory | Identified exit to Armory 15729 | -4/Factory | Discovered new exit (range 12) 15816 | -4/Factory | Identified exit to Extension 15908 | -4/Factory | Discovered exit to Research (range 15) 15949 | -4/Factory | Incoming investigation squad redirected 16031 | -4/Factory | Spotted B-86 Titan 16296 | -4/Factory | Spotted Executioner 16297 | -4/Factory | Cargo convoy interrupted 16362 | -4/Factory | Entered Upper Caves 16465 | -4/Upper Caves | Discovered new exit (range 4) 16466 | -4/Upper Caves | Identified exit to Upper Caves 16466 | -4/Upper Caves | Entered another Upper Caves area 16467 | -4/Upper Caves | Forged Quantum Companion 16550 | -4/Upper Caves | Learned Research terminal intel 16594 | -4/Upper Caves | Discovered new exit (range 7) 16595 | -4/Upper Caves | Identified exit to Zhirov 16600 | -4/Upper Caves | Entered Zhirov 16600 | -4/Zhirov | Discovered new exit (range 3) 16604 | -4/Zhirov | Met Zhirov 16608 | -4/Zhirov | Learned location of Quarantine (-3) 16608 | -4/Zhirov | Learned location of Testing (-2) 16612 | -4/Zhirov | Zhirov requested help retrieving the SGEMP Prototype 16616 | -4/Zhirov | Found Alien Artifact 16616 | -4/Zhirov | Identified Integrated Dissipator 16616 | -4/Zhirov | Installed Integrated Dissipator, increased core heat dissipation (+20) 16636 | -4/Zhirov | Found Alien Artifact 16645 | -4/Zhirov | Identified exit to Proximity Caves 16646 | -4/Zhirov | Entered Proximity Caves 16793 | -3/Proximity Caves | Spotter reported a threat 16834 | -3/Proximity Caves | Spotted B-86 Titan 16845 | -3/Proximity Caves | Entered Research 16845 | -3/Research | Evolved 2 slots: Propulsion x1, Utility x1 16846 | -3/Research | Loaded intel: 99 trap records 16849 | -3/Research | Loaded intel: 23 terminal locations 16865 | -3/Research | Identified exit to Quarantine 16950 | -3/Research | Identified Transdimensional Reconstructor 16986 | -3/Research | Incoming investigation squad redirected 16988 | -3/Research | Found Powered Armor 16989 | -3/Research | Found Powered Armor 17040 | -3/Research | Spotted B-86 Titan 17073 | -3/Research | Entered Quarantine 17112 | -3/Quarantine | Found Alien Artifact 17112 | -3/Quarantine | Identified Dimensional Node Initializer 17112 | -3/Quarantine | Initialized slip node 17116 | -3/Quarantine | Found Dimensional Node Initializer 17118 | -3/Quarantine | Found Alien Artifact 17118 | -3/Quarantine | Identified Hpw. Transdimensional Reconstructor 17118 | -3/Quarantine | Warped through subspace to slip node 17125 | -3/Quarantine | Found Hpw. Transdimensional Reconstructor 17126 | -3/Quarantine | Found Transdimensional Reconstructor 17133 | -3/Quarantine | Found Fusion Bomb Launcher 17198 | -3/Quarantine | Found Prototype Processor 17198 | -3/Quarantine | Identified Spectral Analyzer 17268 | -3/Quarantine | Found Alien Slashing Weapon 17302 | -3/Quarantine | Found Alien Artifact 17314 | -3/Quarantine | Found Alien Artifact 17316 | -3/Quarantine | Identified Subatomic Replicator 17316 | -3/Quarantine | Forged Prototype Slashing Weapon 17440 | -3/Quarantine | Spotted Fortress 17460 | -3/Quarantine | Discovered new exit (range 6) 17460 | -3/Quarantine | Discovered new exit (range 6) 17461 | -3/Quarantine | Entered Protoforge 17465 | -3/Protoforge | Warped through subspace 17489 | -3/Protoforge | Spotted Hotshot 17489 | -3/Protoforge | Spotted Hotshot 17489 | -3/Protoforge | Spotted Hotshot 17497 | -3/Protoforge | Discovered new exit (range 13) 17499 | -3/Protoforge | Spotted Hotshot 17528 | -3/Protoforge | Initialized slip node 17534 | -3/Protoforge | Spotted Hotshot 17534 | -3/Protoforge | Spotted Hotshot 17555 | -3/Protoforge | Superfortress began startup sequence 17575 | -3/Protoforge | Identified Terrabomb 17575 | -3/Protoforge | Used Terrabomb 17575 | -3/Protoforge | Additional patrols dispatched to research labs 17580 | -3/Protoforge | Spotted Immortal 17580 | -3/Protoforge | Spotted Immortal 17597 | -3/Protoforge | Spotted Decapitator 17597 | -3/Protoforge | Spotted Decapitator 17597 | -3/Protoforge | Spotted Decapitator 17603 | -3/Protoforge | Found Prototype Device 17603 | -3/Protoforge | Identified Crosscalibrator 17606 | -3/Protoforge | Found Prototype Device 17606 | -3/Protoforge | Identified Exp. Trap Extractor 17612 | -3/Protoforge | Spotted Decapitator 17615 | -3/Protoforge | Spotted Decapitator 17619 | -3/Protoforge | Destroyed Decapitator 17619 | -3/Protoforge | Destroyed Decapitator 17640 | -3/Protoforge | Spotted V696-h 17641 | -3/Protoforge | Found Cep. Fieldthrust Drive 17642 | -3/Protoforge | Spotted V103-e 17666 | -3/Protoforge | Found Cep. Antigrav Storage Unit 17674 | -3/Protoforge | Destroyed Decapitator 17676 | -3/Protoforge | Destroyed Decapitator 17678 | -3/Protoforge | Destroyed Decapitator 17700 | -3/Protoforge | Found Cep. Fieldthrust Drive 17704 | -3/Protoforge | Found Prototype Hover Unit 17709 | -3/Protoforge | Found Faulty Cep. Combat Aerolev Unit 17717 | -3/Protoforge | Found Prototype Hover Unit 17721 | -3/Protoforge | Found Prototype Hover Unit 17737 | -3/Protoforge | Forge Plexus network access discovered 17739 | -3/Protoforge | Identified Cep. Gyrokinetic System (x3) 17771 | -3/Protoforge | Spotted Decapitator 17771 | -3/Protoforge | Spotted V921-v 17771 | -3/Protoforge | Spotted V580-y 17775 | -3/Protoforge | Spotted Hotshot 17780 | -3/Protoforge | Destroyed Hotshot 17780 | -3/Protoforge | Spotted Hotshot 17782 | -3/Protoforge | Destroyed Hotshot 17792 | -3/Protoforge | Spotted V556-y 17797 | -3/Protoforge | Spotted V672-q 17798 | -3/Protoforge | Found Faulty Cep. Zero-point Core 17799 | -3/Protoforge | Found Faulty Cep. Zero-point Core 17800 | -3/Protoforge | Found Faulty Cep. Zero-point Core 17812 | -3/Protoforge | Spotted Decapitator 17812 | -3/Protoforge | Spotted Decapitator 17812 | -3/Protoforge | Spotted Decapitator 17812 | -3/Protoforge | Spotted Decapitator 17819 | -3/Protoforge | Destroyed Decapitator 17819 | -3/Protoforge | Destroyed Decapitator 17831 | -3/Protoforge | Destroyed Decapitator 17834 | -3/Protoforge | Destroyed Decapitator 17844 | -3/Protoforge | Spotted V568-s 17846 | -3/Protoforge | Destroyed V568-s 17847 | -3/Protoforge | Found Prototype Device 17847 | -3/Protoforge | Identified Exp. Shock Absorption System 17864 | -3/Protoforge | Found Cep. Tiamat Rocket Array 17873 | -3/Protoforge | Found Prototype Device 17873 | -3/Protoforge | Identified Exp. Focal Shield 17881 | -3/Protoforge | Found Cep. Rapid Grenade Launcher 17898 | -3/Protoforge | Spotted Immortal 17898 | -3/Protoforge | Spotted Immortal 17898 | -3/Protoforge | Spotted V756-b 17898 | -3/Protoforge | Spotted V935-d 17898 | -3/Protoforge | Spotted V019-i 17904 | -3/Protoforge | Found Cep. Melee Reflex Suite 17906 | -3/Protoforge | Found Cep. Weapon Articulator 17911 | -3/Protoforge | Spotted V932-c 17911 | -3/Protoforge | Found Femtoactuators 17930 | -3/Protoforge | Found Cep. Network Penetrator 17932 | -3/Protoforge | Found Cep. Network Penetrator 17952 | -3/Protoforge | Found Cep. Nanofilaments [Polyglass] 17952 | -3/Protoforge | Installed Cep. Nanofilaments [Polyglass], 3 resistances modified: KI -10%, TH +20%, EX -50% 17980 | -3/Protoforge | Spotted AP7-3 17983 | -3/Protoforge | Spotted AP7-3 17991 | -3/Protoforge | Warped through subspace to slip node 18014 | -3/Protoforge | Found Cep. Antimissile System 18019 | -3/Protoforge | Found Exp. System Purifier 18023 | -3/Protoforge | Found Cep. Weapon Articulator 18043 | -3/Protoforge | Spotted Decapitator 18044 | -3/Protoforge | Entered Research 18044 | -2/Research | Evolved 2 slots: Utility x2 18055 | -2/Research | Identified exit to Testing 18093 | -2/Research | Spotted B-90 Cyclops 18096 | -2/Research | Spotted B-90 Cyclops 18141 | -2/Research | Spotted B-90 Cyclops 18281 | -2/Research | Build established: Wizard-Sprinter 18302 | -2/Research | Entered Testing 18305 | -2/Testing | Found Prototype Device 18305 | -2/Testing | Identified 2N-1CE's Frost Array 18330 | -2/Testing | Found Prototype Processor 18330 | -2/Testing | Identified Exp. Core Analyzer 18372 | -2/Testing | Found Prototype Ballistic Cannon 18372 | -2/Testing | Identified Omega Cannon 18384 | -2/Testing | Found Prototype Processor 18384 | -2/Testing | Identified Exp. Target Analyzer 18390 | -2/Testing | Found Prototype Device 18409 | -2/Testing | Spotted Striker 18422 | -2/Testing | Found Prototype Launcher 18422 | -2/Testing | Identified Z-bomb Delivery System 18426 | -2/Testing | Discovered new exit (range 22) 18452 | -2/Testing | Found Prototype Protection 18452 | -2/Testing | Identified SHELL Armor 18457 | -2/Testing | Found Prototype Protection 18457 | -2/Testing | Identified Hvy. Regenerative Plating 18473 | -2/Testing | Identified Sigix Broadsword 18473 | -2/Testing | Identified Exp. Actuator Array 18505 | -2/Testing | Found Prototype Device 18505 | -2/Testing | Identified AEGIS Remote Shield 18540 | -2/Testing | Entered Access 18540 | -1/Access | Evolved 2 slots: Power x1, Weapon x1 18541 | -1/Access | Identified exit to Surface 18623 | -1/Access | Identified exit to Command 18727 | -1/Access | Spotted B-99 Colossus 18841 | -1/Access | Fabricated Zero-point Reactor? 18909 | -1/Access | Destroyed 7 combat bots 18965 | -1/Access | Entered Command 19041 | -1/Command | Spotted B-99 Colossus 19044 | -1/Command | Destroyed B-99 Colossus 19167 | -1/Command | Spotted M Guard 19167 | -1/Command | Spotted M Guard 19167 | -1/Command | Spotted Combat Programmer 19167 | -1/Command | Spotted Combat Programmer 19184 | -1/Command | Destroyed Combat Programmer 19197 | -1/Command | Destroyed Combat Programmer 19226 | -1/Command | Destroyed M Guard 19255 | -1/Command | Destroyed M Guard 19255 | -1/Command | All MAIN.C guards destroyed 19266 | -1/Command | Found Corrupted AEGIS Remote Shield 19271 | -1/Command | Found Corrupted Zero-point Reactor 19272 | -1/Command | Found Corrupted Zero-point Reactor 19276 | -1/Command | Found Corrupted Zero-point Reactor 19278 | -1/Command | Found Corrupted Zero-point Reactor 19285 | -1/Command | Found Corrupted Thermal Barrier 19430 | -1/Command | Build established: Sprinter 19456 | -1/Command | Met MAIN.C 19471 | -1/Command | 0b10 Conduit disabled 19495 | -1/Command | Destroyed MAIN.C Shell 19496 | -1/Command | MAIN.C activated Command garrisons 19551 | -1/Command | Destroyed MAIN.C 19552 | -1/Command | Discovered exit to Surface (range 29) 19552 | -1/Command | Discovered exit to Surface (range 93) 19552 | -1/Command | Extracted map data and part IDs from MAIN.C's data core 19554 | -1/Command | Found Exp. Powered Armor 19634 | -1/Command | Spotted B-99 Colossus 20269 | -1/Command | Found Exp. Core Analyzer 20574 | -1/Command | Found Exp. System Purifier 20579 | -1/Command | Found Spectral Analyzer 20583 | -1/Command | Found Vortex Chain Reactor 20589 | -1/Command | Found AEGIS Remote Shield 20595 | -1/Command | System corruption reached 10% 21135 | -1/Command | Warped through subspace to slip node 21135 | -1/Command | Discovered new exit (range 4) 21139 | -1/Command | Entered Access_0 21140 | -1/Access_0 | Met Architect 21147 | -1/Access_0 | Destroyed A8 21151 | -1/Access_0 | Architect warped through subspace 21179 | -1/Access_0 | Found Hpw. Transdimensional Reconstructor 21190 | -1/Access_0 | Architect warped through subspace 21225 | -1/Access_0 | Architect warped through subspace 21236 | -1/Access_0 | Subspace Access Node disabled 21238 | -1/Access_0 | A6 warped into view 21262 | -1/Access_0 | Destroyed A6 21267 | -1/Access_0 | Architect warped through subspace 21269 | -1/Access_0 | Found Femtoactuators 21286 | -1/Access_0 | Architect warped through subspace 21310 | -1/Access_0 | Found Integrated Reactor 21310 | -1/Access_0 | Installed Integrated Reactor, increased core energy generation (+10) 21333 | -1/Access_0 | Architect warped through subspace 21367 | -1/Access_0 | Architect warped through subspace 21397 | -1/Access_0 | Architect warped through subspace 21413 | -1/Access_0 | Found Exp. Phase Shifter 21433 | -1/Access_0 | Core integrity fell below 50% 21439 | -1/Access_0 | Architect warped through subspace 21444 | -1/Access_0 | Subspace Access Node disabled 21451 | -1/Access_0 | A5 warped into view 21462 | -1/Access_0 | Destroyed A5 21468 | -1/Access_0 | Architect warped through subspace 21490 | -1/Access_0 | Architect warped through subspace 21508 | -1/Access_0 | Destroyed 7 combat bots 21516 | -1/Access_0 | Architect warped through subspace 21544 | -1/Access_0 | Architect warped through subspace 21565 | -1/Access_0 | Architect warped through subspace 21596 | -1/Access_0 | Architect warped through subspace 21597 | -1/Access_0 | A4 warped into view 21609 | -1/Access_0 | Destroyed A4 21642 | -1/Access_0 | Subspace Access Node disabled 21660 | -1/Access_0 | Architect warped through subspace 21716 | -1/Access_0 | Architect warped through subspace 21750 | -1/Access_0 | Architect warped through subspace 21766 | -1/Access_0 | Architect warped through subspace 21797 | -1/Access_0 | Architect warped through subspace 21808 | -1/Access_0 | Destroyed A2 21840 | -1/Access_0 | Architect warped through subspace 21865 | -1/Access_0 | Singularity Gate disabled 21892 | -1/Access_0 | Extracted Singularity Gate Test 138-C access codes from A2's data core 21914 | -1/Access_0 | Subspace Access Node disabled 21943 | -1/Access_0 | Extracted unknown sensor trigger ID from Architect's data core 21952 | -1/Access_0 | Found Hpw. Transdimensional Reconstructor 22028 | -1/Access_0 | Core integrity fell below 20% 22055 | -1/Access_0 | A3 warped into view 22074 | -1/Access_0 | Destroyed A3 22079 | -1/Access_0 | Found Prototype Ballistic Gun 22079 | -1/Access_0 | Identified A3's Sniper Rifle 22082 | -1/Access_0 | Found Prototype Device 22082 | -1/Access_0 | Identified ST Field Compressor 22155 | -1/Access_0 | Found Sigix Corpse 22284 | -1/Access_0 | Found Prototype Device 22284 | -1/Access_0 | Identified Desublimator 22289 | -1/Access_0 | Warped through subspace to slip node 22289 | -1/Access_0 | Discovered exit to Surface (range 8) 22296 | *** | Establishing 0b11! Last Messages --------------- 22196_ Enhanced Sentry destroyed. 22223_ Superquantum Companion surprise attacks Enhanced Grunt. 22223_ Destroyed Adv. Particle Charger. 22224_ Destroyed Adv. Heat Sink. 22224_ Enhanced Grunt sundered. 22224_ Enhanced Grunt destroyed. 22227_ Superquantum Companion surprise attacks Enhanced Grunt. 22228_ Enhanced Grunt destroyed. 22249_ Enhanced Grunt Neutron Cannon severed. 22251_ Superquantum Companion surprise attacks Enhanced Grunt. 22251_ Enhanced Grunt destroyed. 22253_ Superquantum Companion surprise attacks Enhanced Grunt. 22258_ Destroyed Lyr. Medium Armor Plating. 22259_ Enhanced Grunt destroyed. 22284_ Acquired Prototype Device. 22284_ Identified Desublimator. 22285_ Acquired Graphene Brace. 22287_ Acquired 4 matter. 22289_ Warped through subspace, drawn to slip node. 22289_ EXIT=FOUND: SURFACE Map ----- +----------------------------------------------------+ | | | | | | | | | | | | | | | | | | | | | | | | | | | | | | | | | ?????????????????????????????????????????????????? | | ?????????????????????????????????????????????????? | | ?????????????????????????????????????????????????? | | ?????????????????????????????????????????????????? | | ?????????????????????????????????????????????????? | | ?????????????????????????????????????????????????? | | ????????????????????????###??????????????????????? | | ???????????????????????## ##?????????????????????? | | ???????????????????????# #?????????????????????? | | ???????????????????????# @ #?????????????????????? | | ??????????????????????## #?????????????????????? | | ??????????????????????# #?????????????????????? | | ??????????????????????# ##?????????????????????? | | ??????????????????????## #?????????????????????? | | ??????????????????????# #?????????????????????? | | ??????????????????????# ##?????????????????????? | | ??????????????????????# < #?????????????????????? | | ??????????????????????# ##?????????????????????? | | ??????????????????????## #??????????????????????? | | ???????????????????????####??????????????????????? | | ?????????????????????????????????????????????????? | | ?????????????????????????????????????????????????? | | ?????????????????????????????????????????????????? | | ?????????????????????????????????????????????????? | | ?????????????????????????????????????????????????? | | ?????????????????????????????????????????????????? | | ?????????????????????????????????????????????????? | | ?????????????????????????????????????????????????? | | ?????????????????????????????????????????????????? | | ?????????????????????????????????????????????????? | | ?????????????????????????????????????????????????? | | ?????????????????????????????????????????????????? | | ?????????????????????????????????????????????????? | | ?????????????????????????????????????????????????? | +----------------------------------------------------+ Best States ------------- Heat Dissipation 172 Energy Generation 99 Energy Capacity 1080 Matter Stores 300 Matter Capacity 300 Sight Range 24 Robot Scan Range 16 Terrain Scan Range 16 Terrain Scan Density 10 ECM Strength 1 Jamming Range 16 Power Amplification 30 Additional Mass Support 20 EM Shielding 4 Armor Coverage 900 Resistance: KI 20 Resistance: TH 70 Core Shielding 40 Point Defense Rating 480 Melee Speed Boost 50 Phase Shifting 20 Evasion (%) 80 Targeting Accuracy 30 Melee Accuracy 8 Core Analysis 8 Recoil Reduction 4 Offensive Hacking 100 Defensive Hacking 14 Authchip Count 1 Item Schematics ----------------- Cld. Impulse Thruster | -6/Factory | Scanalyzed Quantum Shading Machine | -6/Factory | Scanalyzed Combat Drone Bay | -6/Data Miner | Free Lgt. Regenerative Plating | -6/Data Miner | Free Cld. Gravmag System | -6/Data Miner | Free Imp. Energy Well | -6/Data Miner | Free Imp. KE Penetrator | -6/Data Miner | Free Field Propulsion Array | -6/Data Miner | Free Adv. Thermal Shield | -6/Data Miner | Free Adv. Launcher Guidance Computer | -6/Data Miner | Free Matter Neutralizer | -6/Data Miner | Free Nanoactuators | -4/Factory | Hacked Assault Drone Bay | -4/Zhirov | Free Exp. Heat Sink | -4/Zhirov | Free Exp. Optical Array | -4/Zhirov | Free Imp. Arc Thrower | -4/Zhirov | Free Powered Armor | -3/Research | Scanalyzed Exp. Coolant Injector | -3/Protoforge | Archive Prc. Phase Gun | -3/Protoforge | Archive Adv. Micro-nuke Launcher | -3/Protoforge | Archive Hvy. Wave Gun | -3/Protoforge | Archive Hvy. Dispersion Rifle | -3/Protoforge | Archive Exp. Melee Analysis Suite | -2/Testing | Hacked Hvy. Tesla Rifle | -2/Testing | Archive Exp. Transmission Jammer | -2/Testing | Hacked Zero-point Reactor | -1/Access | Hacked Robot Schematics ------------------ E-15 Imp | -6/Data Miner | Free Y-54 Guardian | -6/Data Miner | Free L-41 Fighter | -6/Data Miner | Free C-35 Carver | -6/Data Miner | Free G-50 Soldier | -6/Data Miner | Free W-44 Eye | -6/Data Miner | Free M-36 Artificer | -6/Data Miner | Free K-01 Serf | -3/Protoforge | Archive G-67 Veteran | -3/Protoforge | Archive Fabricated ------------ Cld. Impulse Thruster | x1 | -6/Factory | Authchip Zero-point Reactor | x1 | -1/Access Repaired ---------- Quantum Shading Machine | 11% | -6/Factory Impulse Thruster Array | 15% | -5/Factory Alien Tech Used ----------------- Integrated Dissipator Dimensional Node Initializer High-powered Transdimensional Reconstructor Subatomic Replicator Transdimensional Reconstructor Terrabomb Concept Nanofilaments [Polyglass] Sigix Broadsword Integrated Reactor Achievements -------------- None Challenges ------------ None Game ------ Seed JunkLobotomyKinecellerator Manual? 0 Play Time 06:40:52 Cumulative 664.2 hours Start 2025.05.06 @ 17:43:26 End 2025.05.07 @ 01:33:06 Sessions 1 Manual Loads 0 Difficulty Rogue Special Mode None Game No. 224 Rogue 222 Adventurer 2 Explorer 0 Win Type 1 Total 36 Types 13/3/11/1/1/0/6/1/0/0 Lore% 93 Gallery% 91 Achievement% 81 Wizard Run 0 Options --------- Layout 0 ASCII 0 Keyboard 1 Movement Numpad Keybinds 0 Fullscreen 1 Font 24/Smallcaps Map View 76x50 Zoom Use 0% Tactical HUD 1 Map Filters NONE Filters NONE Steam 1 RUN: 74137f2c-4f17-4b40-99aa-41ee274f3141